Workbook

Sheet Cover Page
D1: Add company logo
N2: Version 24.2a (for incinerators) - 27/11/24
N4: Note that there is another version of this template available for co-incinerators
B8: Add photo
N13: Notes:
N14: This template may require adjustments by individual operators to meet specific reporting requirements as defined in the site Permit(s)
B29: Annual Performance Report 2024
B31: Permit EPR/BR4551IC
B33: Kent Enviropower Limited
B35: Allington Incinerator, Allington Quarry
B37: Kent Enviropower Limited
B39: Year: | C39: 2024
B41: Address: | C41: Laverstoke Road, Allington, Maidstone, Kent. ME16 0LE
B43: Tel: | C43: 0844 736 9990
B45: Email:
B47: Prepared by: | C47: Trevor Ellis | F47: Position: | G47: Environment Manager
B49: Approved by: | C49: Tony Stanbridge | F49: Position: | G49: General Manager
B51: Version: | C51: 2
B53: Issue Date: | C53: 31st January 2025

Sheet Contents
A1: =+'Cover Page'!$B$29 -> Annual Performance Report 2024 | E1: =+'Cover Page'!$B$33 -> Kent Enviropower Limited
A3: Contents | K3: Notes:
A4: Section | B4: Subject | H4: Page | K4: Section references and Page nos. to be inserted
B5: Facility Information | K5: Sections and Subjects may require adjustment by individual operators to meet specific reporting requirements as defined in the sites Permit(s)
B6: Operational Data
B7: Operational Summary
B8: Performance Form 1
B9: Energy Form 1
B10: Permit Compliance
B11: Improvements
B12: Public Liaison
B13: Carbon dioxide and nitrous oxide emissions
B14: Residue Quality
B15: Emissions to Water
B16: Emissions to Air (periodically monitored)
B17: Emissions to Air (continuously monitored)
B18: Hydrogen Chloride emissions
B19: Sulphur Dioxide emissions
B20: Oxides of Nitrogen emissions
B21: Total Organic Carbon emissions
B22: Particulate Matter emissions
B23: Carbon Monoxide emissions
B24: Ammonia emissions
A27: Version Control
A28: Section | B28: Information | H28: Date
A35: Distribution
A36: Copy | B36: Name, Role | H36: No.
A45: This report is required under the Industrial Emissions Directive’s Article 55(2) requirements on reporting and public information on waste incineration plants and co-incineration plants, which require the operator to produce an annual report on the functioning and monitoring of the plant and make it available to the public.

Sheet Facility Info
A1: =+'[1]Cover Page'!$B$29 -> Annual Performance Report 2023 | E1: =+'[1]Cover Page'!$B$33 -> Kent Enviropower Limited
A3: Plant Description and Design | K3: Notes:
A5: Installation Description The Installation receives non hazardous municipal and industrial waste, recovers recyclable elements for reuse and eliminates the combustible element of the residue by burning in a fluidised bed furnace. Energy is recovered from the process and converted to electricity in place of non-renewable fossil fuels. The combustion gases are cleaned to meet the standards required by the Directive before discharge from a tall chimney. Ashes and other solid residues are removed from the installation. The Installation covers the site and the entire EfW plant including all EfW lines, waste reception, storage, on-site pre-treatment facilities, water, fuel and air supply systems, boiler, facilities for the treatment of exhaust gases, on-site facilities for treatment or storage of residues and waste water, stack, devices and systems for controlling combustion operations, recording and monitoring conditions. The Installation has a design throughput of approx 580,000 tonnes per annum with an EfW capacity approx 560,000 tonnes per annum. The transfer loading station receives food waste and clean source separated recyclables which it reloads for onward transport and recovery. There is a single waste reception followed by three independent waste treatment lines each complete with a heat recovery boiler, acid gas abatement, bag filter and a separate flue in the chimney. The heat produced from the combustion of the waste is used to generate steam in the boilers and the steam is then combined and passed to a steam turbine which generates approx 34.5 MW of electrical energy for export to the National Grid. | K5: Include summary of plant design, design capacity, no. of combustion lines, electrical and heat capacity and any other general information that describes the facility, its location and purpose
A20: Summary of Operational Processes and Procedures
A22: Raw Materials Waste is delivered to the plant in road vehicles which are weighed before proceeding to the tipping hall. This is a fully enclosed building, maintained under slight negative pressure to ensure that no odours, dust or litter can escape the building. The vehicles carry either unsorted mixed municipal waste, sorted waste for recycling or mixed recyclable waste and non recyclable waste and each tip into the appropriate section of the tipping hall. The unsorted mixed waste (black bag) is transferred by crane grab to a waste shredding line, it then moves forward through a metals extraction section where ferrous metals are removed for recycling before moving to the prepared fuel bunker. The facility also operates as a waste transfer site. It receives clean mixed recyclates and food wastes collected in the community and loads them in bulk onto their designated transport vehicles for transport off site for recovery. A crane grab in the prepared fuel bunker both mixes the waste and charges the hoppers of the three incineration lines. Hydrated lime for the flue gas cleaning process is delivered by bulk tanker and offloaded pneumatically into three 125m3 silos vented through a reverse pulse jet filter. Activated carbon for the flue gas cleaning process is stored in dedicated silos that are pneumatically filled from delivery trucks. There are three silos, one for each line, each equipped with filters to prevent dust emissions during filling. Urea, dissolved in water is stored in a fully bunded tank and is injected into the furnaces as necessary to control NOx emissions. Caustic soda for water treatment resin regeneration is delivered by bulk tanker and offloaded into a 5.5 m3 tank with scrubber, inside the demineralisation area. Hydrochloric acid for water treatment resin regeneration is delivered by bulk tanker and offloaded into a 5.5 m3 tank vented through the caustic soda scrubber in a bund outside the demineralisation area. Various other water treatment chemicals are delivered in appropriate containers and stored in bunded areas. Gas oil for the combustion chamber burners and on-site vehicles is stored in a fully bunded 150 m3 tank. Sand for the fluidised bed furnaces is stored in 3 silos each of 55 cubic meters capacity. Various maintenance materials (oils, greases, insulants, antifreezes, welding and fire fighting gases etc.) are stored in the appropriate manner. Combustion Process:- The technology employed for incineration is the ROWITEC unit which uses a fluidised bed process. The design has an inclined air distributor plate with a number of separate air supply chambers providing differential air flows across the bed, causing a revolving action. This technique promotes rapid and uniform mixing of the sand and bottom ash and ensures that heavy inert and non-combustible material migrates to the sides of the bed where they can easily be removed. An angled furnace wall above the fluidised bed zone restrains bed expansion under high fluidising air flows and so minimises particulate carry over. The elliptical patterns of air flow converge in the centre of the combustion area ensuring effective vertical and lateral turbulent mixing and high combustion efficiency and uniformity. The waste is burned on a bed consisting of sand and ash that is held in suspension by an upward flow of combustion air that circulates the combustion mixture up to the throat of the furnace. The furnace operating design is based on a thermal capacity of 53.8MW at full load and this can be achieved over the typical range of waste calorific values expected with municipal waste. The combustion air system provides the furnace with the total air requirements for fluidisation and combustion. Primary air is supplied to the bottom of the combustion chamber and fluidises the bed. This air is extracted from the waste reception and storage buildings and destroys all odours in the combustion chamber. Each furnace is equipped with two fuel oil burners for use at start-up to heat the furnace and also during extreme reductions in waste fuel calorific value when the temperature of the furnace would otherwise fall below 850 degrees Centigrade. Combustion control of the furnace will be achieved through a combination of furnace bed and freeboard temperature control, primary air flow control, oxygen control within the flue gas and furnace load. Recirculated flue gas is fed to the furnace bed as a cooling medium to control the furnace bed temperature and also to assist the control of NOx by influencing the combustion temperature conditions within the furnace. The furnace bed is managed to remove non-combustible material (bottom ash) from the bed and maintain the sand level within the optimum operating range. Bottom ashes produced in the furnace together with sand migrate down the slope of the furnace to the discharge section located at each side of the bed. The bottom ash and sand are both withdrawn from the discharge sections of the bed by two water-cooled discharge screw conveyors. Material passing out of the screw conveyors is discharged to a vibrating screen. Undersize material is returned to the sand hopper for re-use within the furnace while the oversized material is sent off site for recovery or re-use or landfill. | K22: Include summary of key processes and procedures such as (but not limited to); waste reception, control rooms, grate, bed and boiler, energy & heat generation, cooling systems, residue management, emission controls, health and safety systems, maintenance
A55: Energy Recovery Hot gases from the furnace pass through to a boiler designed to generate steam. The boiler comprises two fully water cooled radiation chambers, a single pass horizontal plain tube convective heating surface, incorporating a three stage convective superheater unit and a plain tube economiser section. The economiser is designed for high velocity gas flow to minimise the reformation of dioxins in the critical de Novo synthesis range. Steam is generated at 65 bar and a final temperature of 420 degrees Centigrade. The high pressure steam from all three boilers feeds into a common header which in turn will feed a condensing steam turbine that will generate electricity. Steam exiting the turbine will be condensed in an air cooled condenser and the condensate returned to the boilers. Gas Cleaning The plant is designed to meet the requirements of the Industrial Emissions Directive as a minimum for releases to air by a combination of main process design and operation and abatement equipment. Flue gases pass from the boiler to the gas cleaning equipment. The gas passes to an electrostatic precipitator (ESP) for the separation of ash carried over from the furnace with the flue gas. Material collected in the ESP will be discharged by means of rotary valves and chain conveyors and then pneumatically fed to the ash silos or re-injected into the flue gas cleaning system. Gases leaving the ESP enter the gas cleaning system. This comprises a circo clean reactor and bag filter system. Gases entering the circo clean reactor will be at a temperature of 190 to 230 degrees C and will come into contact with a mixture of water, hydrated lime and activated carbon that have been injected into the reactor. The reactor is designed to reduce or remove acidic pollutants such as HCl, SO2 and HF by the use of the hydrated lime and dioxins and furans, PCBs, PAHs, mercury vapour and heavy metal salts such as mercury chloride by the use of the activated carbon. The injected water enhances the reactions and cools the gas. The control system of the circo clean reactor optimises the use of reactants by balancing the feed rate with the concentration of the pollutants entering the circo clean reactor. The final stage of the gas cleaning system is the bag filter unit which separates the particulate material from the flue gas. The baghouse filter consists of compartments each of which contains a number of tubular filter bags. A thick porous layer of particulate builds on the bag surfaces to form a filter cake which efficiently removes ultra fine particles from the gas stream and the excess lime continues to react with the acid gases. Bag house residue is discharged from the compartments via the integrated buffer storage by a closed pneumatic conveying system into the reaction product silos. Silos are equipped with a filter, hopper heating and fluidisation system to assist discharge. The residue is then discharged directly into road vehicles under dust free conditions for transport off site to a licensed facility. Nitrogen oxides (NOx) abatement is achieved by the use of both flue gas recirculation (FGR) and selective non-catalytic reduction (SNCR). The SNCR is based on the injection of urea into the furnace chambers before the boilers and before the lime and carbon injection and before the gas passes to bag filters. The cleaned gas then discharges to atmosphere via three 80-metre flues in a common stack at an efflux velocity in excess of 15 ms-1 at maximum throughput. Ancillary Operations Demineralised water is required to compensate for boiler blowdown losses. A package demineralisation plant provides this water. The ion exchange resins are regenerated using sodium hydroxide and hydrochloric acid and the regeneration effluent is routed through a neutralisation tank to the collection pit for reuse where possible. Ash Handling Bottom ash, the combined boiler and ESP ash and the flue gas treatment residue (FGTR) from the bag filter system, are each sent for separate disposal off site by licensed contractors subject to waste licensing legislation. FGTR is not mixed with any other ash at any time. The bottom ash is likely to be subject to ferrous and non ferrous metals extraction by the contractors before disposal or reuse. All operations will be subject to waste licensing legislation and be tracked by the Environment Agency. At least quarterly sampling of the bottom ash will be carried out to ensure effective burn out is being achieved by testing for the “loss on ignition” of the residual ash. All other solid waste residues arising from the operation of the process will be removed from site, in enclosed containers, for disposal by suitable contractors. Liquid Effluent and Site Drainage Uncontaminated surface water from the roads and parking area that is not reused within the process will be discharged to sewer.
A82: Emissions Monitoring Emissions from the stack are continuously monitored for: particulate, carbon monoxide (CO), ammonia (NH3), sulphur dioxide (SO2), hydrogen chloride (HCl), oxygen (O2), nitrogen oxides (NOx) Nitrous Oxide (N2O) Carbon Dioxide (CO2) and volatile organic compounds (VOC). In addition periodic sampling and measurement will be carried out for metals cadmium (Cd), thallium (Tl), mercury (Hg), antimony (Sb), arsenic (As), lead (Pb), chromium (Cr), cobalt (Co), copper (Cu), manganese (Mn), nickel (Ni), vanadium (V), dioxins and furans, dioxin like PCBs and hydrogen fluoride (HF). Periodic measurements are carried out bi annually and in some instances annually.

Sheet Operational Data
A1: =+'Cover Page'!$B$29 -> Annual Performance Report 2024 | E1: =+'Cover Page'!$B$33 -> Kent Enviropower Limited
A3: Operational Data
A4: Plant Size | B4: 560000 | D4: tonnes pa | E4: 161.4 | F4: MWth | G4: 34.5 | H4: MWe | J4: Notes:
A5: No. of combustion lines | B5: 3 | D5: No. of Turbines: | F5: 1 | J5: * - RDF to include SRF
J6: ** - Combusted tonnage = tonnes delivered in period + (tonnes in bunker at start of period – tonnes in bunker at end of period), or equivalent calculation depending on plant type
A7: Waste types received | B7: Unit | C7: Q1 | D7: Q2 | E7: Q3 | F7: Q4 | G7: Year Total | H7: %
A8: Household / Local Authority | B8: tonnes | C8: 90441 | D8: 85323.7 | E8: 87785.28 | F8: 82277.48 | G8: =SUM(C8:F8) -> 345827.46 | H8: =IF(G8>0,G8/$G$18,"-") -> 0.7148935352
A9: Commercial & Industrial | C9: 34041.92 | D9: 15475.24 | E9: 26786.24 | F9: 27361.9 | G9: =SUM(C9:F9) -> 103665.3 | H9: 0.2142966114 | J9: *** - CHP plants only
A10: Hazardous | G10: 0 | H10: - | J10: **** Availability Definition: 'the availability of a line is to be calculated by the number of hours the line reported Continuously Monitored emission levels to the Regulator through the calendar year divided by the total number of hours in that year. The overall plant availability is calculated as the Mean of all lines in the plant. For clarity this includes periods of abnormal operation.' Rationale: The primary function of an Energy from Waste facility is the disposal of waste. It follows therefore that the availability of a plant is determined by the period of time a facility spends undertaking this activity.
A11: Clinical | G11: 0 | H11: -
A12: Waste wood (biomass) | G12: 0 | H12: -
A13: Refuse Derived Fuel * - H'hold/LA | G13: =SUM(C13:F13) -> 0 | H13: -
A14: Refuse Derived Fuel * - C&I | C14: 1289.4 | D14: 1003.9 | E14: 1721.22 | F14: 6813.1 | G14: 10827.62 | H14: 0.02238282506
A15: Food waste | C15: 1089.52 | D15: 878.3 | E15: 834.94 | F15: 811.4 | G15: 3614.16 | H15: 0.007471181205
A16: Recyclates waste | C16: 4698.92 | D16: 3713.78 | E16: 4157.4 | F16: 4774.16 | G16: 17344.26 | H16: 0.03585400462
A17: Card/Paper | C17: 696.8 | D17: 586.84 | E17: 544.1 | F17: 640.26 | G17: 2468 | H17: 0.005101842534
A18: Total waste received | C18: =SUM(C8:C17) -> 132257.56 | D18: =SUM(D8:D17) -> 106981.76 | E18: =SUM(E8:E17) -> 121829.18 | F18: =SUM(F8:F17) -> 122678.3 | G18: 483746.8
A19: Rejected Waste | C19: 143.2 | D19: 154 | E19: 5 | F19: 120 | G19: =SUM(C19:F19) -> 422.2 | H19: =IF(G19>0,G19/$G$18,"-") -> 0.0008727706312
A20: Unprocessed waste transferred out | C20: 6485.24 | D20: 5178.92 | E20: 5536.44 | F20: 6225.82 | G20: =SUM(C20:F20) -> 23426.42 | H20: =IF(G20>0,G20/$G$18,"-") -> 0.04842702835
A21: Total waste combusted ** | C21: 119287 | D21: =D18-D20+M21+N21+O21-M26-N26-O26 -> 101802.84 | E21: =E18-E20+P21+Q21+R21-P26-Q26-R26 -> 116292.74 | F21: =F18-F20+S21+T21+U21-S26-T26-U26 -> 116452.48 | G21: =SUM(C21:F21) -> 453835.06 | H21: =IF(G21>0,G21/$G$18,"-") -> 0.9381665367
J22: Password for protected cells A password has been set to prevent accidental editing of cells with formulae. If you still need to make an edit for some reason then the password = 1234
A23: Energy Usage / Export | B23: Unit | C23: Q1 | D23: Q2 | E23: Q3 | F23: Q4 | G23: Year Total | H23: KWh/te
A24: Power Generated | B24: MWh | C24: 63958 | D24: 49416 | E24: 64660 | F24: 58235 | G24: =SUM(C24:F24) -> 236269 | H24: =IF(G24>0,G24*1000/$G$21,"-") -> 520.6054376
A25: Power Exported | C25: 49323 | D25: 36741 | E25: 49537 | F25: 44748 | G25: =SUM(C25:F25) -> 180349 | H25: =IF(G25>0,G25*1000/$G$21,"-") -> 397.3888663
A26: Power Used on site | C26: =SUM(C24-C25) -> 14635 | D26: =SUM(D24-D25) -> 12675 | E26: =SUM(E24-E25) -> 15123 | F26: =SUM(F24-F25) -> 13487 | G26: =SUM(C26:F26) -> 55920 | H26: =IF(G26>0,G26*1000/$G$21,"-") -> 123.2165712
A27: Power Imported | C27: 55 | D27: 491 | E27: 413 | F27: 317 | G27: 1276 | H27: =IF(G27>0,G27*1000/$G$21,"-") -> 2.811594151
A28: Parasitic Load | B28: % | C28: =IF(C24>0,1-C25/(C24+C27),"-") -> 0.2294846359 | D28: =IF(D24>0,1-D25/(D24+D27),"-") -> 0.2638106879 | E28: =IF(E24>0,1-E25/(E24+E27),"-") -> 0.2387472531 | F28: =IF(F24>0,1-F25/(F24+F27),"-") -> 0.2357562509 | G28: =IF(G24>0,1-G25/(G24+G27),"-") -> 0.2407796418
A29: Thermal Energy Produced *** | B29: MWh | G29: =SUM(C29:F29) -> 0 | H29: =IF(G29>0,G29*1000/$G$21,"-") -> -
A30: Thermal Energy Exported *** | G30: 0 | H30: =IF(G30>0,G30*1000/$G$21,"-") -> -
A31: R1 value (if applicable) | B31: R1 | G31: 0.6
A33: Waste Disposal & Recovery | B33: Unit | C33: Q1 | D33: Q2 | E33: Q3 | F33: Q4 | G33: Year Total | H33: % inputs
A34: APC Residues - produced | B34: tonnes | C34: 10080.76 | D34: 8395.74 | E34: 10967.16 | F34: 11072.62 | G34: =SUM(C34:F34) -> 40516.28 | H34: =IF(G34>0,G34/$G$21,"-") -> 0.08927534157
A35: IBA - produced | C35: 11342.24 | D35: 10705.82 | E35: 10927.12 | F35: 9430.52 | G35: 42405.7 | H35: =IF(G35>0,G35/$G$21,"-") -> 0.09343857215
A36: Metals recycling | C36: 3675.08 | D36: 2937.32 | E36: 3284.9 | F36: 3120.18 | G36: =SUM(C36:F36) -> 13017.48 | H36: 0.02868328419
A37: Other | C37: 0 | D37: 0 | E37: 0 | F37: 0 | G37: =SUM(C37:F37) -> 0 | H37: -
A38: Other | C38: 0 | D38: 0 | E38: 0 | F38: 0 | G38: 0 | H38: -
A39: Other | C39: 0 | D39: 0 | E39: 0 | F39: 0 | G39: 0 | H39: -
A41: Raw Material Usage | B41: Unit | C41: Q1 | D41: Q2 | E41: Q3 | F41: Q4 | G41: Year Total | H41: kg or Ltr /te
A42: Mains Water | B42: ltrs | C42: 38142.95328 | D42: 35647.29385 | E42: 35228.62258 | F42: 34405.68602 | G42: =SUM(C42:F42) -> 143424.5557 | H42: =IF(G42>0,G42/$G$21,"-") -> 0.3160279325
A43: Other Water | B43: ltrs | C43: 0 | D43: 0 | E43: 0 | F43: 0 | G43: 0 | H43: =IF(G43>0,G43/$G$21,"-") -> -
A44: Ammonia | B44: kgs | C44: 0 | D44: 0 | E44: 0 | F44: 2000 | G44: 2000 | H44: 0.004406887383
A45: Urea | B45: kgs | C45: 0 | D45: 0 | E45: 11000 | F45: 0 | G45: =SUM(C45:F45) -> 11000 | H45: 0.02423788061
A46: Activated Carbon | B46: kgs | C46: 71000 | D46: 65000 | E46: 55000 | F46: 80000 | G46: 271000 | H46: 0.5971332404
A47: Lime / hydrated lime | B47: kgs | C47: 623000 | D47: 662000 | E47: 754000 | F47: 1086000 | G47: 3125000 | H47: 6.885761536
A48: Caustic Soda | B48: kgs | C48: 42000 | D48: 4000 | E48: 62000 | F48: 31000 | G48: =SUM(C48:F48) -> 139000 | H48: =IF(G48>0,G48/$G$21,"-") -> 0.3062786731
A49: Hydrochloric Acid | B49: kgs | C49: 37000 | D49: 46000 | E49: 53000 | F49: 26000 | G49: 162000 | H49: 0.356957878
A50: Sand | B50: kgs | C50: 651000 | D50: 1218000 | E50: 712000 | F50: 685000 | G50: 3266000 | H50: 7.196447097
A51: Salt | B51: kgs | C51: 1000 | D51: 4000 | E51: 2000 | F51: 2000 | G51: =SUM(C51:F51) -> 9000 | H51: =IF(G51>0,G51/$G$21,"-") -> 0.01983099322
A52: Fuel oil | B52: ltrs | C52: 508764 | D52: 914420 | E52: 973700 | F52: 716760 | G52: 3113644 | H52: 6.86073923
A53: Gas | B53: cuf | C53: 0 | D53: 0 | E53: 0 | F53: 0 | G53: 0
A54: Other | C54: 0 | D54: 0 | E54: 0 | F54: 0 | G54: 0
A56: Summary | B56: Line/Unit | C56: Q1 | D56: Q2 | E56: Q3 | F56: Q4 | G56: Year Total | I56: Hrs in year
A57: Availability of waste combustion by line, hrs **** | B57: 1 | C57: 2133 | D57: 1359 | E57: 2117 | F57: 1402 | G57: =SUM(C57:F57) -> 7011 | H57: =+G57/$I$57 -> 0.7981557377 | I57: 8784 | J57: Change this figure to 8784 in a leap year
B58: 2 | C58: 1278 | D58: 1580 | E58: 1665 | F58: 1874 | G58: 6397 | H58: =+G58/$I$57 -> 0.7282559199
B59: 3 | C59: 1754 | D59: 1546 | E59: 1737 | F59: 1625 | G59: 6662 | H59: 0.758424408
B60: 4 | C60: 0 | D60: 0 | E60: 0 | F60: 0 | G60: 0 | H60: 0
B61: 5 | C61: 0 | D61: 0 | E61: 0 | F61: 0 | G61: =SUM(C61:F61) -> 0 | H61: 0
A62: Overall Availability, mean avg. of all lines, hrs | C62: 1721.666667 | D62: 1495 | E62: 1839.666667 | F62: 1633.666667 | G62: =AVERAGE(G57:G61) -> 4014 | H62: 0.4569672131
A63: Hours of turbine operations, hrs | B63: 1 | C63: 2170 | D63: 2038 | E63: 2104 | F63: 2104 | G63: 8416 | H63: 0.9581056466
A64: Hours of turbine operations, hrs | B64: 2 | C64: 0 | D64: 0 | E64: 0 | F64: 0 | G64: 0 | H64: 0
A65: Hours of heat / steam export | G65: 0 | H65: =IF(B65>0,G64/I57,"n/a") -> n/a
A66: Net Calorific Value of waste | B66: MJ/kg | C66: 10.2745801 | D66: 10.18350786 | E66: 10.48666861 | F66: 10.67402736
A67: Abnormal Events | B67: qty. | C67: 1 | D67: 0 | E67: 0 | F67: 0 | G67: 1 | H67: =IF(G67>0,"yes","no") -> yes
A68: Abnormal operation | B68: hours | C68: 0.5 | D68: 0 | E68: 0 | F68: 0 | G68: 0.5 | H68: =+(G68)/I57 -> 5.692167577e-05
A69: Permit Breaches | B69: qty. | C69: 0 | D69: 3 | E69: 1 | F69: 3 | G69: 7 | H69: =IF(G69>0,"yes","no") -> yes

Sheet Operational Summary
A1: =+'Cover Page'!$B$29 -> Annual Performance Report 2024 | E1: =+'Cover Page'!$B$33 -> Kent Enviropower Limited
A3: Summary of Plant Operations and Maintenance during the reporting year | K3: Notes:
A5: Line 2 and Line 1 underwent planned maintenance outages in March and October respectively, with particular focus in the following areas: - Furnace refractory inspection and repair/replacement, with particular focus on the furnace roof to improve plant availability - Modification of furnace crossover profile to eliminate ash build-up inside the furnace - Boiler cleaning and inspection using non-destructive testing - Dry-ice cleaning of Electrostatic Precipitators to improve efficiency - Inspection and overhaul of 120+ valves to improve efficiency - Inconel weld overlay of boiler tubes to protect against corrosion from flue gas - Inspection and replacement of residue ash hopper walls where thin to protect against potential fugitive dust emissions - Inspection of common air ducts in the Baghouse Filters to protect against potential fugitive dust emissions - Inspection and cleaning of electrical system components | K5: Include summary of key operational and/or maintenance activity undertaken in the year, such as any major component upgrades and/or replacements
A29: Summary of Residue Handling for the reporting year
A31: Bottom ash, the combined boiler and ESP ash and the flue gas treatment residue (FGTR) from the bag filter system, are each sent for separate disposal off site by licensed contractors subject to waste licensing legislation. FGT is not mixed with any other ash at any time. The bottom ash is likely to be subject to ferrous and non ferrous metals extraction. IBA is subject to hazardous assessment twice a month and approx. 42 vehicles are sent off site every week for recovery. The APC residues are tested quarterly and approx. 35 tankers are sent off site every week. | K31: Include in here a summary of residue handling regimes and destinations
A54: =+'Cover Page'!C39 -> 2024 | B54: Plant shut-downs
A55: Date | B55: Reason for shut-down | K55: Provide a very brief reason for plant shut-down e.g. "Shut-down prior to major outage"; "Emergency shut-down due to boiler tube leak" There is no need to include periods of hot-standby here (e.g. to clear feed chute hopper blockages). For clinical waste incinerators which require regular shut-downs for boiler cleaning, there is no need to record these here.
A56: January | B56: Line 2 – waste feed distributor failure followed by bed defluidisation – 10 days off
A57: February | B57: Line 3 – AF004 blockage – 13 days off
A58: March | B58: Line 2 – Planned outage – 24 days Line 3 – Bed defluidisation – 5 days
A59: April | B59: Line 2 – Bed defluidisation – 4 days
A60: May | B60: Line 1 – Compensator failure – 6 days Line 2 – Tube leak – 5 days Line 3 – Cast resin transformer failure – 2 days Line 3 - Gas Recirculation fan failure – 4 days Line 1 and Line 2 – boiler water quality issues – 3 days each
A61: June | B61: Line 3 - Bed defluidisation – 9 days Line 1 – ID Fan drive failure – 5 days Line 1 – Rowitec roof refractory damaged – 15 days Line 2 - Bed defluidisation – 6 days
A62: July | B62: Line 2 - Bed defluidisation – 5 days
A63: August | B63: Line 3 – AF004 ash blockage – 11 days Line 2 – Bed defluidisation – 4 days All 3 Lines – steam damaged instrumentation – Line 1 - 3 days / Line 2 – 2 days / Line 1 – 4 days Line 3 – waste feed screw failure
A64: September | B64: Line 2 – Tube Leak – 1 day
A65: October | B65: Line 1 - Planned outage – 34 days Line 2 – Tube leak – 3 days Line 3 – AF004 blockage – 10 days
A66: November | B66: Line 3 – High dust level investigation – 2 days Line 2 – Tube leak repair – 6 days
A67: December | B67: Line 3 – Filter bag replacement – 3 days Line 3 – Ash crane 2 failure and blocked Circoclean – 2 days

Sheet Perf. Form 1
A1: =+'Cover Page'!C39 -> 2024 | B1: Annual Reporting Performance Form 1
A3: =+'Cover Page'!B31 -> Permit EPR/BR4551IC | F3: Operator: | G3: =+'Cover Page'!B37 -> Kent Enviropower Limited
A4: Facility: | B4: =+'Cover Page'!B33:I33 -> Kent Enviropower Limited | F4: Form: | G4: Performance 1
A6: Reporting Period from: | D6: 2024-01-01 | F6: to: | G6: 2024-12-31
A8: =+A1 -> 2024 | B8: Annual Reporting of Waste Disposal and Recovery
A9: Waste Description | C9: Disposal Route(s) | E9: Disposal Tonnes | G9: Recovery Tonnes | I9: % / tonne of waste incinerated
A10: 1) Hazardous Wastes
A11: APC Residues (including FGT, Boiler and ESP ash) | C11: Landfill | E11: 10882.9 | I11: =IF((E11+G11)>0,(E11+G11)/'Operational Data'!$G$21, "-") -> 0.02397985735
A12: APC Residues (including FGT, Boiler and ESP ash) | C12: Recycling | G12: 29633.38 | I12: =IF((E12+G12)>0,(E12+G12)/'Operational Data'!$G$21, "-") -> 0.06529548422
I13: =IF((E13+G13)>0,(E13+G13)/'Operational Data'!$G$21, "-") -> -
I14: =IF((E14+G14)>0,(E14+G14)/'Operational Data'!$G$21, "-") -> -
A15: Total Hazardous Waste | E15: =SUM(E11:F14) -> 10882.9 | G15: =SUM(G11:H14) -> 29633.38 | I15: =IF((E15+G15)>0,(E15+G15)/'Operational Data'!$G$21, "-") -> 0.08927534157
A17: 2) Non-Hazardous Wastes
A18: IBA | C18: Recycling | G18: 40516.28 | I18: =IF((E18+G18)>0,(E18+G18)/'Operational Data'!$G$21, "-") -> 0.08927534157
A19: Ferrous Metal | C19: Recycling | G19: 13017.48 | I19: =IF((E19+G19)>0,(E19+G19)/'Operational Data'!$G$21, "-") -> 0.02868328419
A20: Process Water | C20: N/A | I20: =IF((E20+G20)>0,(E20+G20)/'Operational Data'!$G$21, "-") -> -
I21: =IF((E21+G21)>0,(E21+G21)/'Operational Data'!$G$21, "-") -> -
I22: =IF((E22+G22)>0,(E22+G22)/'Operational Data'!$G$21, "-") -> -
A23: Total Non-Hazardous Waste | E23: =SUM(E18:F22) -> 0 | G23: =SUM(G18:H22) -> 53533.76 | I23: =IF((E23+G23)>0,(E23+G23)/'Operational Data'!$G$21, "-") -> 0.1179586258
A24: TOTAL WASTE | E24: =+E23+E15 -> 10882.9 | G24: =+G23+G15 -> 83167.14 | I24: =IF((E24+G24)>0,(E24+G24)/'Operational Data'!$G$21, "-") -> 0.2072339673
A26: Operator’s comments :
A27: APCr continues to shift significantly from landfill to recycling and this trend is set to continue into 2025.
A31: =+A1 -> 2024 | B31: Annual Reporting of Water and Other Raw Material Usage
A32: Raw Material | E32: Usage | G32: Unit | H32: Specific Usage | J32: Unit
A33: Mains Water | E33: =+'Operational Data'!G42/1000 -> 143.4245557 | G33: m3 | H33: =IF(E33>0,E33/'Operational Data'!$G$21,"-") -> 0.0003160279325 | J33: m3/te
A34: Total Water | E34: =+'Operational Data'!G43+'Operational Data'!G42/1000 -> 143.4245557 | G34: m3 | H34: =IF(E34>0,E34/'Operational Data'!$G$21,"-") -> 0.0003160279325 | J34: m3/te
A35: Urea / Ammonia | E35: =+'Operational Data'!G44 -> 2000 | G35: kg | H35: =IF(E35>0,E35/'Operational Data'!$G$21,"-") -> 0.004406887383 | J35: kg/te
A36: Activated Carbon | E36: =+'Operational Data'!G46 -> 271000 | G36: kg | H36: =IF(E36>0,E36/'Operational Data'!$G$21,"-") -> 0.5971332404 | J36: kg/te
A37: Lime / hydrated lime / Sodium Bicarb. | E37: =+'Operational Data'!G47 -> 3125000 | G37: kg | H37: =IF(E37>0,E37/'Operational Data'!$G$21,"-") -> 6.885761536 | J37: kg/te
A38: Caustic Soda | E38: =+'Operational Data'!G48 -> 139000 | G38: kg | H38: =IF(E38>0,E38/'Operational Data'!$G$21,"-") -> 0.3062786731 | J38: kg/te
A39: Hydrochloric Acid | E39: =+'Operational Data'!G49 -> 162000 | G39: kg | H39: =IF(E39>0,E39/'Operational Data'!$G$21,"-") -> 0.356957878 | J39: kg/te
A40: Sand | E40: =+'Operational Data'!G50 -> 3266000 | G40: kg | H40: =IF(E40>0,E40/'Operational Data'!$G$21,"-") -> 7.196447097 | J40: kg/te
A41: Salt | E41: =+'Operational Data'!G51 -> 9000 | G41: kg | H41: =IF(E41>0,E41/'Operational Data'!$G$21,"-") -> 0.01983099322 | J41: kg/te
A42: Fuel oil | E42: =+'Operational Data'!G52 -> 3113644 | G42: ltrs | H42: =IF(E42>0,E42/'Operational Data'!$G$21,"-") -> 6.86073923 | J42: ltrs\te
A44: Operator’s comments :
A45: No comments for this section.
A48: =+A31 -> 2024 | B48: Annual Reporting of other performance indicators
A49: Parameter | C49: Results by Line
C50: A1 | D50: A2 | E50: A3 | F50: A4 | G50: A5 | I50: Turbine 1 | J50: Turbine 2
A51: Operating hours for the year, hours | C51: 7011 | D51: 6397 | E51: 6662 | I51: 8416
A52: Number of periods of abnormal operation, qty. | E52: 1
A53: Cumulative hours of abnormal operation for this year, hours | E53: 0.5
A55: Operator’s comments :
A56: The number of periods of abnormal operation have reduced in 2024 from 2023.
A59: Signed: | G59: Date: | H59: 31st Jan 2025

Sheet Energy Form 1
A1: =+'Cover Page'!C39 -> 2024 | B1: Annual Reporting of Energy Usage/Export
A3: =+'Cover Page'!B31 -> Permit EPR/BR4551IC | F3: Operator: | G3: =+'Cover Page'!B37 -> Kent Enviropower Limited
A5: Facility: | B5: =+'Cover Page'!B33:I33 -> Kent Enviropower Limited | F5: Form: | G5: Energy 1
A7: Reporting Period from: | D7: =+'Perf. Form 1'!D6:E6 -> 2024-01-01 | F7: to: | G7: =+'Perf. Form 1'!G6:H6 -> 2024-12-31
A9: Energy Source | D9: Energy Usage | F9: Unit | G9: Specific Usage (KWh/tonne incinerated
A10: Electricity Produced | D10: =+'Operational Data'!G24 -> 236269 | F10: MWh | G10: =+'Operational Data'!H24 -> 520.6054376
A11: Electricity Imported | D11: =+'Operational Data'!G27 -> 1276 | F11: MWh | G11: =+'Operational Data'!H27 -> 2.811594151
A12: Electricity Exported | D12: =+'Operational Data'!G25 -> 180349 | F12: MWh | G12: =+'Operational Data'!H25 -> 397.3888663
A13: Gas Oil | D13: 2646.5974 | F13: tonnes | G13: 70.45
A14: Steam/hot water exported | D14: =+'Operational Data'!G30 -> 0 | F14: GWh | G14: =+'Operational Data'!H30 -> -
A18: Operator’s comments :
A19: A similar year to 2023 with the exception of imported electricity that was more due to site going into island mode for a short period so that uK Power Networks could complete some work.
A29: Signed: | G29: Date: | H29: 31st Jan 2025

Sheet Permit Compliance
A1: =+'Cover Page'!$B$29 -> Annual Performance Report 2024 | E1: =+'Cover Page'!$B$33 -> Kent Enviropower Limited
A3: Summary of Permit Compliance
A5: Compliance with permit limits for continuously monitored pollutants
A7: The plant met its emission limits as shown in the table below:
A8: Substance | C8: Percentage time compliant during operationNote 1 | L8: Notes:
C9: Half-hourly limit | F9: Daily limit | L9: Note 1: Please report to 2 decimal places, i.e. xx.xx% Note 2: Please enter into this table any permit non-compliances that the EA has given a CCS score for. Please also enter any other non-compliances which you have notified to the EA (e.g. ELV exceedances) but which have not yet been assessed by the EA. There is no need to enter any notifications which were subsequently assessed by the EA not to be permit breaches. Note 3: Please enter information here (rather than just referencing the notifications that were sent to the EA) including where relevant the incineration line reference, pollutant and value of the measured result for any ELV exceedances.
A10: Particulates | C10: 1 | F10: 0.9989
A11: Oxides of nitrogen | C11: 1 | F11: 1
A12: Sulphur dioxide | C12: 1 | F12: 1
A13: Carbon monoxide | C13: 99.99% 95% of 10-min averages | F13: 0.9978
A14: Total organic carbon | C14: 1 | F14: 1
A15: Hydrogen chloride | C15: 0.9999 | F15: 1
A16: Hydrogen fluoride | C16: NA | F16: NA
A19: Summary of non-compliances under the permit Note 2
A20: Date | B20: Summary of non-compliance Note 3 | D20: Reason | G20: Measures taken to prevent reoccurrence | H20: CCS score if applicable*
H21: Impact | I21: Root cause
A22: 2024-03-28 | B22: 028 L3 HCL SO2 abnormal operation | D22: The bed de fluidisation due to trouser leg blockage caused significant disturbace to the abatement system. | G22: Implementation of furnace camera to see the entire bed to identify bed disturbances. More effective use of bed improvement procedure ALT-G23-WI-1300 Removal of Aluminium from the fuel infeed Clear significant blockages when they occur | I22: See the "Reason" column
A23: 2024-04-20 | B23: Schedule 5 number 099 - Line 2 Elevated Daily Average CO of 65 mg/Nm3 against a permit limit of 50 mg/Nm3 | D23: Poor/Incomplete combustion, waste feed chute backing up, waste falling onto bed. These conditions also led to 70mbar fall from the crossover, collapsing the sand (heavy bed) | G23: Continue to monitor bed conditions, sand usage and key operating parameters. Freeboard temperatures to be controlled <1000degC. Look at changing the SA (secondary air) philosophy when single side feeding. Check operation of Line 2 SA damper | I23: See the "Reason" column
A24: 2024-05-22 | B24: Schedule 5 number 100 - Line 2 Elevated Daily Average CO of 56 mg/Nm3 against a permit limit of 50 mg/Nm3 | D24: Poor combustion due to low temperatures on the bed allowing waste to not completely burn off. Low FB temperatures cause CO formation from waste as well as burner operations. | G24: Continue to monitor bed conditions, sand usage and key operating parameters. Freeboard temperatures to be controlled <1000degC. Look at changing the SA (secondary air) philosophy when single side feeding. Check operation of Line 2 SA damper Shutdown tracker missed, full shutdown was not achieved, and waste was put back which re validated the period. | I24: See the "Reason" column
A25: 2024-06-11T14:00:00 | B25: Schedule 5 number 101 - Elevated first half year compliance monitoring on line 3 for Dioxins/Furans (monitoring result 0.099 ng/m3 against a permit limit of 0.06 ng/m3) | D25: Possible ne nova synthesis occurring at the back end of the boiler in the 300/400°C temp range, fly ash stuck to the tubes and wall can desorb dioxins back into the stream. Also, TOC spike during the test period, can create some dioxins that are picked up on the test. | G25: Dioxin retested and passed test Carry out performance cleans when end of boiler temperature levels are high Only test the system if the combustion control is stable to ensure a representative result. Ensure dust levels are as low as possible to minimise dioxin levels | I25: See the "Reason" column
A26: 2024-08-23T23:00:00 | B26: Schedule 5 number 102 - 9 elevated CO readings recorded. | D26: Data revalidated when coming back on waste. Operations team were unaware that we were registering CO when we were in shutting down mode. CO counter showed 8 x CO’s when waste was initiated. | G26: CEMS to show counters when we are in shutdown mode, and to disappear when data is invalidated. If burners are going to be on low load for a longer period, set minimum load to 20% to reduce the CO formation. Conduct a full inspection of burners, poor combustion efficiency at low load could be improved. (Line 3 300mg/Nm2 @ 15%, Line 2 150mg/Nm3 @15%.) | I26: See the "Reason" column
A27: 2024-10-23 | B27: Schedule 5 number 103 - Elevated Dioxins on two lines. Permit limit is 0.06 ng/m3 Line 2 recorded 0.1 ng/m3 Line 3 recorded 0.13 ng/m3 | D27: This is still being investigated and the EA Dioxin protocal is in progress of extra testing | G27: Root cause analysis in progress | I27: See the "Reason" column
A28: 2024-11-07 | B28: Schedule 5 number 104 - Elevated Daily Dust on Line 3 (Permit limit is 5.00 mg/m3 and 5.20 has been recorded) | D28: This is still being investigated and the EA Dioxin protocal is in progress of extra testing | G28: Root cause analysis in progress | I28: See the "Reason" column
A29: 2024-12-20 | B29: Schedule 5 number 105 - Line 3 elevated half hour emission of HCL (recorded a reading of 74.3 against a permit limit of 60.0) | D29: Currently being investigated | G29: Root cause analysis in progress | I29: See the "Reason" column
A30: *If the Environment Agency (EA) has given a Compliance Classification Scheme (CCS) score due to a permit non-compliance it should be entered here (CCS4 = No impact; CCS3 = Minor impact; CCS2 = Significant impact; CCS1 = Major impact). If the EA has not yet assessed a non-compliance which you have notified to them, these columns should be left blank. Enter N/A if no score was given for the root cause.
A32: Summary of any complaints received and actions to taken to resolve them.
A33: Date | B33: Summary of complaint [including Line/Reference] | E33: Reason (including whether substantiated by the operator or the EA) | H33: Measures taken to prevent reoccurrence
A34: 2024-01-11 | B34: Odour | E34: Substantiated by the operator based on the wind direction | H34: All odour complaints have been justified on wind direction information. Following any odour complaint the facility carries out an odour survey and checks all odour controls are in place and compliant. The complainant is then contacted (if details are avialable) and advised of any findings and very often invited to the facility for a site tour.
A35: 2024-02-12 | B35: Odour | E35: Substantiated by the operator based on the wind direction
A36: 2024-02-12 | B36: Odour | E36: Substantiated by the operator based on the wind direction
A37: 2024-03-10T19:00:00 | B37: Odour | E37: Substantiated by the operator based on the wind direction
A38: 2024-03-11T09:00:00 | B38: Odour | E38: Substantiated by the operator based on the wind direction
A39: 2024-04-17 | B39: Odour | E39: Substantiated by the operator based on the wind direction
A40: 2024-04-17 | B40: Odour | E40: Substantiated by the operator based on the wind direction
A41: 2024-04-18 | B41: Odour | E41: Substantiated by the operator based on the wind direction
A42: 2024-04-20 | B42: Odour | E42: Substantiated by the operator based on the wind direction
A43: 2024-05-07 | B43: Odour | E43: Substantiated by the operator based on the wind direction
A44: 2024-05-18 | B44: Odour | E44: Substantiated by the operator based on the wind direction
A45: 2024-06-03T07:26:00 | B45: Odour | E45: Substantiated by the operator based on the wind direction
A46: 2024-06-06T17:00:00 | B46: Odour | E46: Substantiated by the operator based on the wind direction
A47: 2024-06-11T09:00:00 | B47: Visual | E47: IBA Offtaker have raised the issue of receiving unburnt waste in with the IBA | H47: Review conducted on combustion control and resolved
A48: 2024-10-31 | B48: Odour | E48: Substantiated by the operator based on the wind direction | H48: As above odour

Sheet Improvements
A1: =+'Cover Page'!$B$29 -> Annual Performance Report 2024 | E1: =+'Cover Page'!$B$33 -> Kent Enviropower Limited
A3: Summary of Plant Improvements
A5: Summary of any efficiency improvements that have been completed within the year.
A6: Line 2 and Line 1 underwent planned maintenance outages in March and October respectively, with particular focus in the following areas: - Furnace refractory inspection and repair/replacement, with particular focus on the furnace roof to improve plant availability - Modification of furnace crossover profile to eliminate ash build-up inside the furnace - Boiler cleaning and inspection using non-destructive testing - Dry-ice cleaning of Electrostatic Precipitators to improve efficiency - Inspection and overhaul of 120+ valves to improve efficiency - Inconel weld overlay of boiler tubes to protect against corrosion from flue gas - Inspection and replacement of residue ash hopper walls where thin to protect against potential fugitive dust emissions - Inspection of common air ducts in the Baghouse Filters to protect against potential fugitive dust emissions - Inspection and cleaning of electrical system components
A16: Summary of any permit improvement conditions that have been completed within the year and the resulting environmental benefits.
A17: No permit improvement conditions completed.
A27: Summary of any changes to the plant or operating techniques which required a variation to the permit and a summary of the resulting environmental impact.
A28: No permit changes to plant or operating techniques that require a permit variation.
A38: Summary of any other improvements made to the plant or planned to be made and a summary of the resulting environmental benefits.
A39: All 3 lines had all 1,708 filter bags (each) replaced in Quarter 4 to help reduce dust emissions. There are currently around 60 improvement projects in progress which include : - installation of a new water treatment plant that will reduce the amount of chemicals required, - installation of furnace cameras to help diagnose any unusual operation of the furnace - installation of individual dust monitors in each filter bag chamber to help diagnose any unusual dust emissions - redesign of our Primary Air Fans to improve reliability - installation of a new air compressor with variable speed drive that will improve efficiency - replacement of the turbine control system

Sheet Public Liasion
A1: =+'Cover Page'!$B$29 -> Annual Performance Report 2024 | E1: =+'Cover Page'!$B$33 -> Kent Enviropower Limited
A3: Details of Public & Stakeholder Liaison
A5: Summary of events held during the reporting year.
A6: Date | C6: Description
A7: 2024-03-05 | C7: The Facility has an active liaison group involving representatives from the following stakeholders: • Chairman - Mr Brian White • Environment Agency • 10 Local Residents • Councillors Walker and Hammond (TMBC members) • Councillors Robertson, Harwood and Daley (MBC members). Cllr Daley is also a member of KCC. • Councillors Homewood and Bird (KCC members) • Maidstone Borough Council Environmental Health, Wilcock • Councillors Walker and Balcombe (Aylesford Parish Council) • Tonbridge & Malling & Maidstone Borough Council Environmental Health • Kent County Council Waste Management • Kent Enviropower
A9: 2024-06-10
A11: 2024-11-04
A16: List of events planned for next year
A17: Date | C17: Description
A18: 2025-02-01 | C18: Opposite are the months for the Liaison meetings planned for 2024. There have been some spaces that have become available at the meeting. Invites have been sent out to prospective new members and all spaces have now been filled.
A20: 2025-06-01
A22: 2025-10-01
A29: If you wish to be involved in the public liaison programme, please contact Brian White (Chairman) - Email: drbdwhite@yahoo.co.uk

Sheet CO2 N2O
A1: =+'Cover Page'!$B$29 -> Annual Performance Report 2024 | C1: =+'Cover Page'!$B$33 -> Kent Enviropower Limited
A3: Carbon dioxide emissions and biogenic content of waste inputs | F3: Notes:
A5: Carbon dioxide emissions (all types of plant)
B6: Annual mass of carbon dioxide released | C6: tonnes | D6: 518000
B7: Annual mass of carbon dioxide released per tonne of waste burned | C7: t CO2 / t waste | D7: 1.2
B8: Annual mass of carbon dioxide released per MWh of energy exported | C8: t CO2 / MWh export | D8: 2.87
B9: Description of how annual carbon dioxide mass emission has been calculated. See Note 1 | C9: CO2 is obtained from a QAL 2 calibrated CEMS | F9: Note 1: All permits require operators to continuously monitor CO2 to EN14181 and flow to BS EN 16911-2 (unless otherwise agreed in writing). Operators must therefore use the results from these instruments to calculate their annual CO2 emissions. Where an operator does not have a flow meter calibrated to BS EN 16911-2, the averaged flow measurement from that year's periodic monitoring can be used instead. If the plant does not have calibrated CO2 CEMS, a suitably justified emissions factor can be used.
A10: Nitrous oxide emissions (only plants which use ammonia or urea to abate NOx emissions)
B11: Annual mass emissions of nitrous oxide | C11: tonnes N2O | D11: 9.63
B12: Description of how annual nitrous oxide mass emission has been calculated See Note 2 | C12: N2O is obtained from a QAL 2 calibrated CEMS | F12: Note 2: All permits require operators to continuously monitor N2O to EN14181 and flow to BS EN 16911-2, unless otherwise agreed in writing. Operators must therefore use the results from these instruments to calculate their annual N2O emissions. Where an operator does not have a flow meter calibrated to BS EN 16911-2, the averaged flow measurement from periodic monitoring can be used instead. If the plant does not have calibrated N2O CEMS, data from periodic monitoring or a suitably justified emissions factor can be used instead.
A13: Total annual carbon dioxide + nitrous oxide emissions. See Note 3. | C13: tonnes CO2e | D13: 2552 | F13: Note 3: Total annual carbon dioxide and nitrous oxide emissions reported as carbon dioxide equivalent where 1 tonne nitrous oxide is equivalent to 265 tonnes carbon dioxide.
A14: Biogenic CO2 emissions (See Note 4) | F14: Note 4: Only plants combusting residual municipal waste, refuse derived fuel or solid recovered fuel need complete this section.
B15: Percentage of total carbon dioxide emissions arising from biogenic waste | C15: % | D15: 0.56
B16: No. of measurements undertaken | C16: Number | D16: 1 month sampling
B17: Description of how percentage biogenic carbon dioxide emissions have been measured or calculated. See Note 5 | C17: Determination of biogenic carbon content of fuel from stationary sources (based on ASTM D6866/EN ISO 13833) | F17: Note 5: The results from C14 sampling should be used if this is carried out at the plant (either via an installed sampler or from spot samples). Otherwise, as an approximation (and in lieu of any more accurate metrics which may be developed in future), the measured or estimated biogenic fraction by net calorific value (see Note 6) can be assumed to be the same as the biogenic CO2 fraction of the total CO2 emissions from the plant.
A18: Biogenic fraction of waste feedstock (See Note 4)
B19: Yearly average biogenic percentage of the waste by net calorific value (NCV) | C19: % | D19: 0.5247
B20: Description of how biogenic percentage (by NCV) has been calculated or estimated. See Note 6 | C20: Annual waste sampling was used to determine calculations. C14 samplers are currently being consodered for installation. | F20: Note 6: If C14 sampling is carried out at the plant, the methodology set out in the embedded document entitled "Renewable Energy Association Energy Content of Fuels - Description of Method" embedded below can be used to calculate the biogenic percentage by net calorific value. Otherwise, data from waste sampling or BIOMA software can be used; or if none of these are available, an estimated figure with justification or a figure assumed on the basis of up-to-date industry data can be used.
B21: Yearly average biogenic percentage of the waste by mass | C21: % | D21: 52.47%%
B22: If waste sampling undertaken, no. of samples used to ascertain average biogenic percentages above | C22: Number | D22: 1
B23: Description of how biogenic percentage (by mass) has been calculated or estimated. See Note 7 | C23: Waste feed analysis carried out annually (these figures are from the 2024 report). The % recorded is all wastes (recorded at 99.52%) minus the following non biogenic waste:- Plastic film 17.64% Dense plastic 20.46% Note: Textiles 8.95% - This calculation assumed textiles are 100% biogenic. | F23: Note 7: Where available, data from waste sampling should be used; otherwise, an estimated figure with justification can be used, or a figure assumed on the basis of up-to-date industry data.
B25: Comments:
B26: CO2 and N2O have come directly from the continuous emission monitoring system (CEMS) and are both QAL 2 calibrated with calibration functions in place. Biogenic CO2 comes from a single C14 testing process.

Sheet Residue Quality
A1: =+'Cover Page'!$B$29 -> Annual Performance Report 2024 | E1: =+'Cover Page'!$B$33 -> Kent Enviropower Limited
A3: Residue Quality Monitoring Requirements
A5: Summary of monitoring undertaken and compliance
A6: Waste Description: Bottom Ash Parameter to be measured : TOC, Metals (Cd, Tl, Hg, Pb, Cr, Cu, Mn, Ni, As, Co, V, Sb, Zn) and their compounds and the total soluble fraction of these metals, dioxins/ furans and dioxin like PCB’s. Sampling and analysis as per Agency ash sampling protocol. Frequency: Quarterly (with the exception of the total soluble fraction which shall be sampled and analysed before the use of a new disposal or recycling route). Hazard assessment undertaken twice a month (24 samples a year)
A9: Commentary on any specific events
A10: Date & Event | C10: Description
A11: NA | C11: NA
A23: Residue Quality Monitoring Results
A24: Parameter (unit) | C24: Limit* | D24: Normal Operation
D25: Bottom ash | F25: APC Residues
A26: Loss on Ignition (average %) | C26: <5% | D26: NA*
A27: Total Organic Carbon (average %) | C27: <3% | D27: <1%
A28: No. of Assessments Undertaken | C28: --- | D28: 28** | F28: 4
A29: No. of Hazardous Results | C29: --- | D29: 0
A30: * The permit will specify a limit of either 5% loss on ignition or 3% total organic carbon. If both are measured anyway, please enter the results here, even where the limit does not apply.
A32: Comments :
A33: * The new permit variation BREF (BR4551IC version 012) no longer requires LOI to be recorded. ** This equates to 24 IBA hazard assessments and 4 quarterly reports.

Sheet Water
A1: =+'Cover Page'!$B$29 -> Annual Performance Report 2024 | E1: =+'Cover Page'!$B$33 -> Kent Enviropower Limited
A3: Emissions to Water
A5: Summary of monitoring undertaken and compliance
A6: Parameters for which reports shall be made, in accordance with conditions of the Consent to the Discharge of Trade Effluent issued by Southern Water, are listed below and are measured monthly. These are not Environmental Permit limits but limits for disposal of effluent water discharged down sewage drains.
A9: Commentary on any specific events
A10: Date & Event | C10: Description
A11: 2024-02-01 | C11: This sample point is problematic because it is very often dry.Unfortunately there is no other sampling point available on site.
O17: ,
A18: Emissions to Water / Sewer
A19: Parameter | D19: Monitoring Frequency | F19: Limit | G19: Target | H19: Max. | I19: Average
A20: Arsenic | D20: monthly | F20: 1 | G20: 1 | H20: 0.1 | I20: 0.09166666667
A21: COD shaken | D21: monthly | F21: 800 | G21: 800 | H21: 79 | I21: 16.03333333
A22: Chromium | D22: monthly | F22: 1 | G22: 1 | H22: 0.1 | I22: 0.09166666667
A23: Copper | D23: monthly | F23: 1 | G23: 1 | H23: 1 | I23: 0.8416666667
A24: Fluoride | D24: monthly | F24: 2 | G24: 2 | H24: 0.8 | I24: 0.3174166667
A25: Lead | D25: monthly | F25: 1 | G25: 1 | H25: 1 | I25: 0.3916666667
A26: Molybdenum | D26: monthly | F26: 1 | G26: 1 | H26: 0.3 | I26: 0.125
A27: Nickel | D27: monthly | F27: 1 | G27: 1 | H27: 0.1 | I27: 0.09166666667
A28: Selenium | D28: monthly | F28: 1 | G28: 1 | H28: 0.1 | I28: 0.09166666667
A29: Suspended solids | D29: monthly | F29: 200 | G29: 200 | H29: 283 | I29: 58.41666667
A30: Sulphate | D30: monthly | F30: 500 | G30: 500 | H30: 169 | I30: 76.75166667
A31: Zinc | D31: monthly | F31: 3 | G31: 3 | H31: 0.2 | I31: 0.1
A32: pH | D32: monthly | H32: 10.5 | I32: 7.65

Sheet Air (periodic)
A1: =+'Cover Page'!$B$29 -> Annual Performance Report 2024 | E1: =+'Cover Page'!$B$33 -> Kent Enviropower Limited
A3: Emissions to Air (periodically monitored)
A5: Summary of monitoring undertaken, standards used and compliance | K5: Notes:
K6: Template may require adjustment for any bespoke monitoring requirements of permit - please also check that all default ELV values, reference periods and the stated oxygen reference value match those for your plant, and edit if necessary!
A9: Results of emissions to air that are periodically monitored - oxygen reference 11%
A10: Substance | C10: Ref. Period | D10: Emission Limit Value | F10: Average | K10: User to add additional tables as necessary, depending on whether quarterly or bi-annual reporting is required for the compliance year
F11: A1 | G11: A2 | H11: A3 | I11: A4 | J11: A5
A12: Cadmium & Thallium | C12: Average of three consecutive measurements of at least 30 minutes each | D12: 0.02mg/m3 | F12: 0.0012 | G12: 0.00105 | H12: 0.00115
A13: Heavy Metals | C13: Average of three consecutive measurements of at least 30 minutes each | D13: 0.3 mg/m3 | F13: 0.0565 | G13: 0.043 | H13: 0.051
A14: Mercury | C14: Average of three consecutive measurements of at least 30 minutes each | D14: 0.02 mg/m3 | F14: 0.00048 | G14: 0.00079 | H14: 0.00077
A15: Hydrogen Fluoride | C15: Average of three consecutive measurements of at least 30 minutes each | D15: 1 mg/m3 | F15: 0.04 | G15: 0.041 | H15: 0.04
A16: Dioxins / furans (I-TEQ)6 | C16: Over period between 6 and 8 hours | D16: 0.06 µg/m3 | F16: 0.0458 | G16: 0.07695 | H16: 0.09145
A17: Dioxins / furans (WHO-TEQ Humans / Mammals) 6 | C17: Over period between 6 and 8 hours | D17: None set µg/m3 | F17: 0.047 | G17: 0.07665 | H17: 0.09625
A18: Dioxins / furans (WHO-TEQ Fish) 6 | C18: Over period between 6 and 8 hours | D18: None set µg/m3 | F18: 0.03435 | G18: 0.0607 | H18: 0.12045
A19: Dioxins / furans (WHO-TEQ Birds) 6 | C19: Over period between 6 and 8 hours | D19: None set µg/m3 | F19: 0.0428 | G19: 0.07815 | H19: 0.0943
A20: Dioxin-like PCBs (WHO-TEQ Humans / Mammals)6 | C20: Over period between 6 and 8 hours | D20: None set µg/m3 | F20: 0.0021275 | G20: 0.007772 | H20: 0.042668
A21: Dioxin-like PCBs (WHO-TEQ Fish)6 | C21: Over period between 6 and 8 hours | D21: None set µg/m3 | F21: 0.000109 | G21: 0.000353 | H21: 0.002208
A22: Dioxin-like PCBs (WHO-TEQ Birds)6 | C22: Over period between 6 and 8 hours | D22: None set µg/m3 | F22: 0.004622 | G22: 0.0127305 | H22: 0.095261
A23: Brominated Dioxins & Furans (NATO I-TEQ) | C23: Over period between 6 and 8 hours | D23: None set µg/m4 | F23: 0.000575 | G23: 0.004 | H23: 0.002
A24: PAHs (DEFRA 16) | C24: Over period between 6 and 8 hours | D24: None set µg/m3 | F24: 0.36 | G24: 0.34 | H24: 0.36
A25: Anthanthrene | C25: Over period between 6 and 8 hours | D25: None set µg/m3 | F25: 0.0014 | G25: 0.0015 | H25: 0.0015
A26: Benzo{a}anthracene | C26: Over period between 6 and 8 hours | D26: None set µg/m3 | F26: 0.0014 | G26: 0.0015 | H26: 0.0015
A27: Benzo[b]fluoranthene | C27: Over period between 6 and 8 hours | D27: None set µg/m3 | F27: 0.0014 | G27: 0.0015 | H27: 0.0015
A28: Benzo[k]fluoranthene | C28: Over period between 6 and 8 hours | D28: None set µg/m3 | F28: 0.0014 | G28: 0.0015 | H28: 0.0015
A29: Benzo[b]naph(2,1-d}thiophene | C29: Over period between 6 and 8 hours | D29: None set µg/m3 | F29: 0.0014 | G29: 0.0015 | H29: 0.0015
A30: Benzo[c]phenanthrene | C30: Over period between 6 and 8 hours | D30: None set µg/m3 | F30: 0.0014 | G30: 0.0015 | H30: 0.0015
A31: Benzo[ghi]perylene | C31: Over period between 6 and 8 hours | D31: None set µg/m3 | F31: 0.0014 | G31: 0.0015 | H31: 0.0015
A32: Benzo[a]pyrene | C32: Over period between 6 and 8 hours | D32: None set µg/m3 | F32: 0.0014 | G32: 0.0015 | H32: 0.0015
A33: Cholanthrene | C33: Over period between 6 and 8 hours | D33: None set µg/m3 | F33: 0.0014 | G33: 0.0015 | H33: 0.0015
A34: Chrysene | C34: Over period between 6 and 8 hours | D34: None set µg/m3 | F34: 0.0014 | G34: 0.0015 | H34: 0.0015
A35: Cyclopenta(cd)pyrene | C35: Over period between 6 and 8 hours | D35: None set µg/m3 | F35: 0.0014 | G35: 0.0015 | H35: 0.0015
A36: Dibenzo[ah]anthracene | C36: Over period between 6 and 8 hours | D36: None set µg/m3 | F36: 0.0014 | G36: 0.0015 | H36: 0.0015
A37: Dibenzo[ai]pyrene | C37: Over period between 6 and 8 hours | D37: None set µg/m3 | F37: 0.0014 | G37: 0.0015 | H37: 0.0015
A38: Fluoranthene | C38: Over period between 6 and 8 hours | D38: None set µg/m3 | F38: 0.012 | G38: 0.013 | H38: 0.014
A39: Indeno[1,2,3-cd]pyrene | C39: Over period between 6 and 8 hours | D39: None set µg/m3 | F39: 0.0014 | G39: 0.0015 | H39: 0.0015
A40: Naphthalene | C40: Over period between 6 and 8 hours | D40: None set µg/m3 | F40: 0.33 | G40: 0.31 | H40: 0.32
A41: Comments :
A42: Dioxins and furans on lines 2 anhd 3 have been problematic. The EA Dioxin protocal is currently being followed.

Sheet Air (CEMS)
A1: =+'Cover Page'!$B$29 -> Annual Performance Report 2024 | I1: =+'Cover Page'!$B$33 -> Kent Enviropower Limited
A3: Emissions to Air (continuously monitored)
N4: Notes:
A5: Summary of monitoring undertaken, standards used and compliance | N5: Template may require adjustment for any bespoke monitoring requirements of permit
N6: Please check that all default ELV values match those for your plant and edit if necessary!
N7: Report to 1 decimal place
A11: Results of emissions to air that are continuously monitored (maximum and average values for each line) - oxygen reference 11%
A12: Substance | B12: Reference Period | C12: Emission Limit Value | D12: A1 | F12: A2 | H12: A3 | J12: A4 | L12: A5
D13: Max. | E13: Avg. | F13: Max. | G13: Avg. | H13: Max. | I13: Avg. | J13: Max. | K13: Avg. | L13: Max. | M13: Avg.
A14: Oxides of nitrogen | B14: Daily mean | C14: 180 mg/m3 | D14: 168.5753 | E14: 128.1164545 | F14: 167.1141 | G14: 128.07085 | H14: 165.6351 | I14: 98.70428333
B15: ½ hourly mean | C15: 400 mg/m3 | D15: 304.5709 | E15: 128.4742273 | F15: 276.5127 | G15: 128.57085 | H15: 336.9896 | I15: 99.17100833
A16: Particulates | B16: Daily mean | C16: 5 mg/m3 | D16: 4.343509 | E16: 2.360918818 | F16: 4.73784 | G16: 2.763044167 | H16: 5.24581 | I16: 2.865744167
B17: ½ hourly mean | C17: 30 mg/m3 | D17: 9.87716 | E17: 2.441259091 | F17: 12.68091 | G17: 2.82707 | H17: 19.33693 | I17: 3.11683
A18: Total Organic Carbon | B18: Daily mean | C18: 10 mg/m3 | D18: 1.157755 | E18: 0.3632945455 | F18: 7.469258 | G18: 0.4829549167 | H18: 6.027492 | I18: 0.49755225
B19: * ½ hourly mean | C19: 20 mg/m3 | D19: 38.381546 | E19: 0.3782326364 | F19: 144.364365 | G19: 0.5395815 | H19: 162.642059 | I19: 0.5396713333
A20: Hydrogen chloride | B20: Daily mean | C20: 8 mg/m3 | D20: 7.63242 | E20: 3.365751818 | F20: 7.83808 | G20: 4.3088375 | H20: 7.86984 | I20: 4.3088375
B21: ½ hourly mean | C21: 60 mg/m3 | D21: 15.47636 | E21: 3.331791818 | F21: 54.06427 | G21: 4.217195833 | H21: 92.53253 | I21: 4.478019167
A22: Sulphur dioxide | B22: Daily mean | C22: 40 mg/m3 | D22: 1.26504 | E22: 0.1339681818 | F22: 4.27538 | G22: 0.8229566667 | H22: 3.30649 | I22: 0.4388716667
B23: ½ hourly mean | C23: 200 mg/m3 | D23: 59.72274 | E23: 0.1347627273 | F23: 148.07516 | G23: 0.8381166667 | H23: 615.23621 | I23: 0.4785483333
A24: Carbon monoxide | B24: 95%ile 10-min avg * | C24: 150 mg/m3 * | D24: 19.5564 | E24: NA | F24: 60.3389 | G24: NA | H24: 57.7157 | I24: NA
A25: Ammonia | B25: Daily mean | C25: 10 mg/m3 | D25: 0.578246 | E25: 0.07273490909 | F25: 4.453254 | G25: 0.2292529167 | H25: 1.724176 | I25: 0.1962695
A26: * = delete as appropriate, depending on whether your plant has half-hourly or 10-min CO ELVs
A27: Comments :
A28: * TOC is 97% of all half hour averages in a rolling year and this has been compliant for all periods.

Sheet HCl
A1: =+'Cover Page'!$B$29 -> Annual Performance Report 2024 | E1: =+'Cover Page'!$B$33 -> Kent Enviropower Limited
A3: Monitoring of Hydrogen Chloride emissions | D3: Whole Installation | G3: See Notes in Cell Q3 | J3: =+A3 -> Monitoring of Hydrogen Chloride emissions | N3: Per Combustion Line | Q3: Notes:
Q4: User to add logic to complete Whole installation, Table A5:G18. From the data in Per Combustion Line, Table J6:O79, subject to No. of lines installed
A5: =+'Cover Page'!C39 -> 2024 | B5: 1/2 Hourly Reference Periods | E5: Daily Reference Periods
A6: mg/Nm3 | B6: 1/2 hourly HCl ELV | C6: Monthly mean of half-hourly averages | D6: Highest half- hourly average | E6: Daily HCl ELV | F6: Monthly mean of daily averages | G6: Highest daily average | J6: =+A5 -> 2024 | K6: mg/Nm3 | L6: Monthly mean of half-hourly averages | M6: Highest half- hourly average | N6: Monthly mean of daily averages | O6: Highest daily average
A7: Jan | B7: 60 | C7: =AVERAGE(L7,L22,L37) -> 2.345126667 | D7: =AVERAGE(M7,M22,M37) -> 6.040206667 | E7: 8 | F7: =AVERAGE(N7,N22,N37) -> 2.444586667 | G7: =AVERAGE(O7,O22,O37) -> 4.751693333 | J7: A1 | K7: Jan | L7: 1.36876 | M7: 4.37127 | N7: 1.45395 | O7: 3.60066
A8: Feb | B8: 60 | C8: =AVERAGE(L8,L23,L38) -> 2.93825 | D8: =AVERAGE(M8,M23,M38) -> 10.26810667 | E8: 8 | F8: =AVERAGE(N8,N23,N38) -> 2.915146667 | G8: =AVERAGE(O8,O23,O38) -> 4.734486667 | K8: Feb | L8: 1.75249 | M8: 11.08071 | N8: 1.742 | O8: 2.617
A9: Mar | B9: 60 | C9: 3.12308 | D9: 38.67116667 | E9: 8 | F9: 3.097056667 | G9: 4.186446667 | K9: Mar | L9: 1.73539 | M9: 10.94141 | N9: 1.72735 | O9: 2.8307 | Q9: Whole Installation table A5:G18:
A10: Apr | B10: 60 | C10: 4.71056 | D10: 28.62618 | E10: 8 | F10: 4.739256667 | G10: 6.30542 | K10: Apr | L10: 3.99656 | M10: 15.47636 | N10: 3.97899 | O10: 5.62414 | Q10: Mean: for 1/2 hourly and daily periods calculate mean of values across all operational combustion lines for the month
A11: May | B11: 60 | C11: 4.212276667 | D11: 17.99199333 | E11: 8 | F11: 4.36728 | G11: 5.35158 | K11: May | L11: 3.06306 | M11: 7.42857 | N11: 3.15086 | O11: 4.80279
A12: Jun | B12: 60 | C12: 3.30568 | D12: 9.013143333 | E12: 8 | F12: 3.374943333 | G12: 4.03056 | K12: Jun | L12: 2.02056 | M12: 5.92297 | N12: 2.13663 | O12: 2.34852
A13: Jul | B13: 60 | C13: 4.12472 | D13: 9.632706667 | E13: 8 | F13: 4.164866667 | G13: 5.671606667 | K13: Jul | L13: 3.68065 | M13: 8.51806 | N13: 3.62449 | O13: 5.90262 | Q13: Maximum: for 1/2 hourly and daily periods use the highest value across all operational combustion lines for the month
A14: Aug | B14: 60 | C14: 3.566716667 | D14: 17.1026 | E14: 8 | F14: 3.741153333 | G14: 5.400373333 | K14: Aug | L14: 2.38683 | M14: 9.5685 | N14: 2.52521 | O14: 4.89789
A15: Sep | B15: 60 | C15: 5.231146667 | D15: 16.39570667 | E15: 8 | F15: 5.260763333 | G15: 6.308273333 | K15: Sep | L15: 5.03019 | M15: 11.81896 | N15: 5.011 | O15: 5.96098
A16: Oct | B16: 60 | C16: 2.60498 | D16: 7.242185 | E16: 8 | F16: 2.72147 | G16: 4.912125 | K16: Oct | L16: - | M16: - | N16: - | O16: -
A17: Nov | B17: 60 | C17: 5.476946667 | D17: 13.25714 | E17: 8 | F17: 5.343303333 | G17: 6.593603333 | K17: Nov | L17: 5.58961 | M17: 10.499 | N17: 5.59309 | O17: 7.1599
A18: Dec | B18: 60 | C18: 6.226273333 | D18: 35.34086333 | E18: 8 | F18: 6.14763 | G18: 7.780113333 | K18: Dec | L18: 6.02561 | M18: 14.93103 | N18: 6.0797 | O18: 7.63242
K19: Annual | L19: =AVERAGE(L7:L18) -> 3.331791818 | M19: =MAX(M7:M18) -> 15.47636 | N19: =AVERAGE(N7:N18) -> 3.365751818 | O19: =MAX(O7:O18) -> 7.63242
J21: =+A5 -> 2024 | K21: mg/Nm3 | L21: Monthly mean of half-hourly averages | M21: Highest half- hourly average | N21: Monthly mean of daily averages | O21: Highest daily average
J22: A2 | K22: Jan | L22: 3.01907 | M22: 7.40401 | N22: 3.13665 | O22: 5.15919
K23: Feb | L23: 3.75147 | M23: 9.99431 | N23: 3.71308 | O23: 5.61906
K24: Mar | L24: 4.50721 | M24: 12.53956 | N24: 4.61901 | O24: 5.49316
K25: Apr | L25: 5.22325 | M25: 54.06427 | N25: 5.31159 | O25: 7.5324
K26: May | L26: 4.84717 | M26: 23.42557 | N26: 5.03541 | O26: 5.64067
K27: Jun | L27: 4.24304 | M27: 11.85838 | N27: 4.30629 | O27: 5.14901
K28: Jul | L28: 3.73035 | M28: 9.61026 | N28: 3.91503 | O28: 5.3203
K29: Aug | L29: 3.41994 | M29: 31.46704 | N29: 3.71979 | O29: 5.62035
K30: Sep | L30: 5.03789 | M30: 19.38111 | N30: 5.13136 | O30: 5.83977
K31: Oct | L31: 1.62871 | M31: 8.22882 | N31: 1.74769 | O31: 4.44688
K32: Nov | L32: 5.0958 | M32: 16.53718 | N32: 4.95744 | O32: 6.05795
K33: Dec | L33: 6.10245 | M33: 16.82166 | N33: 6.11271 | O33: 7.83808
K34: Annual | L34: =AVERAGE(L22:L33) -> 4.217195833 | M34: =MAX(M22:M33) -> 54.06427 | N34: =AVERAGE(N22:N33) -> 4.3088375 | O34: =MAX(O22:O33) -> 7.83808
J36: =+A5 -> 2024 | K36: mg/Nm3 | L36: Monthly mean of half-hourly averages | M36: Highest half- hourly average | N36: Monthly mean of daily averages | O36: Highest daily average
J37: A3 | K37: Jan | L37: 2.64755 | M37: 6.34534 | N37: 2.74316 | O37: 5.49523
K38: Feb | L38: 3.31079 | M38: 9.7293 | N38: 3.29036 | O38: 5.9674
K39: Mar | L39: 3.12664 | M39: 92.53253 | N39: 2.94481 | O39: 4.23548
K40: Apr | L40: 4.91187 | M40: 16.33791 | N40: 4.92719 | O40: 5.75972
K41: May | L41: 4.7266 | M41: 23.12184 | N41: 4.91557 | O41: 5.61128
K42: Jun | L42: 3.65344 | M42: 9.25808 | N42: 3.68191 | O42: 4.59415
K43: Jul | L43: 4.96316 | M43: 10.7698 | N43: 4.95508 | O43: 5.7919
K44: Aug | L44: 4.89338 | M44: 10.27226 | N44: 4.97846 | O44: 5.68288
K45: Sep | L45: 5.62536 | M45: 17.98705 | N45: 5.63993 | O45: 7.12407
K46: Oct | L46: 3.58125 | M46: 6.25555 | N46: 3.69525 | O46: 5.37737
K47: Nov | L47: 5.74543 | M47: 12.73524 | N47: 5.47938 | O47: 6.56296
A48: Comments : | K48: Dec | L48: 6.55076 | M48: 74.2699 | N48: 6.25048 | O48: 7.86984
A49: A1 (line 1) had an outage for a complete month in October (hence no data available) | K49: Annual | L49: =AVERAGE(L37:L48) -> 4.478019167 | M49: =MAX(M37:M48) -> 92.53253 | N49: =AVERAGE(N37:N48) -> 4.458465 | O49: =MAX(O37:O48) -> 7.86984
J51: =+A5 -> 2024 | K51: mg/Nm3 | L51: Monthly mean of half-hourly averages | M51: Highest half- hourly average | N51: Monthly mean of daily averages | O51: Highest daily average
J52: A4 | K52: Jan
K53: Feb
K54: Mar
K55: Apr
K56: May
K57: Jun
K58: Jul
K59: Aug
K60: Sep
K61: Oct
K62: Nov
K63: Dec
K64: Annual | L64: =AVERAGE(L52:L63) ->  | M64: =MAX(M52:M63) -> 0 | N64: =AVERAGE(N52:N63) ->  | O64: =MAX(O52:O63) -> 0
J66: =+A5 -> 2024 | K66: mg/Nm3 | L66: Monthly mean of half-hourly averages | M66: Highest half- hourly average | N66: Monthly mean of daily averages | O66: Highest daily average
J67: A5 | K67: Jan
K68: Feb
K69: Mar
K70: Apr
K71: May
K72: Jun
K73: Jul
K74: Aug
K75: Sep
K76: Oct
K77: Nov
K78: Dec
K79: Annual | L79: =AVERAGE(L67:L78) ->  | M79: =MAX(M67:M78) -> 0 | N79: =AVERAGE(N67:N78) ->  | O79: =MAX(O67:O78) -> 0

Sheet SO2
A1: =+'Cover Page'!$B$29 -> Annual Performance Report 2024 | E1: =+'Cover Page'!$B$33 -> Kent Enviropower Limited
A3: Monitoring of Sulphur dioxide emissions | D3: Whole Installation | G3: See Notes in Cell Q3 | J3: =+A3 -> Monitoring of Sulphur dioxide emissions | N3: Per Combustion Line | Q3: Notes:
Q4: User to add logic to complete Whole installation, Table A5:G18. From the data in Per Combustion Line, Table J6:O79, subject to No. of lines installed
A5: =+'Cover Page'!C39 -> 2024 | B5: 1/2 Hourly Reference Periods | E5: Daily Reference Periods
A6: mg/Nm3 | B6: 1/2 hourly SO2 ELV | C6: Monthly mean of half-hourly averages | D6: Highest half- hourly average | E6: Daily SO2 ELV | F6: Monthly mean of daily averages | G6: Highest daily average | J6: =+A5 -> 2024 | K6: mg/Nm3 | L6: Monthly mean of half-hourly averages | M6: Highest half- hourly average | N6: Monthly mean of daily averages | O6: Highest daily average
A7: Jan | B7: 200 | C7: =AVERAGE(L7,L22,L37) -> 0.20426 | D7: =AVERAGE(M7,M22,M37) -> 13.56484667 | E7: 40 | F7: =AVERAGE(N7,N22,N37) -> 0.2069133333 | G7: =AVERAGE(O7,O22,O37) -> 0.6577766667 | J7: A1 | K7: Jan | L7: 0.02452 | M7: 1.47286 | N7: 0.0239 | O7: 0.22231
A8: Feb | B8: 200 | C8: =AVERAGE(L8,L23,L38) -> 0.33719 | D8: =AVERAGE(M8,M23,M38) -> 17.74871333 | E8: 40 | F8: =AVERAGE(N8,N23,N38) -> 0.3171533333 | G8: =AVERAGE(O8,O23,O38) -> 1.165596667 | K8: Feb | L8: 0.09139 | M8: 11.72373 | N8: 0.08899 | O8: 0.28881
A9: Mar | B9: 200 | C9: 0.6269566667 | D9: 230.42708 | E9: 40 | F9: 0.3854933333 | G9: 1.01374 | K9: Mar | L9: 0.32742 | M9: 59.72274 | N9: 0.29872 | O9: 1.26504 | Q9: Whole Installation table A5:G18:
A10: Apr | B10: 200 | C10: 0.44198 | D10: 38.22645333 | E10: 40 | F10: 0.4483 | G10: 1.733546667 | K10: Apr | L10: 0.08823 | M10: 6.49704 | N10: 0.08992 | O10: 0.29192 | Q10: Mean: for 1/2 hourly and daily periods calculate mean of values across all operational combustion lines for the month
A11: May | B11: 200 | C11: 0.3698333333 | D11: 25.85513667 | E11: 40 | F11: 0.39258 | G11: 1.271176667 | K11: May | L11: 0.12822 | M11: 3.68765 | N11: 0.13882 | O11: 0.60039
A12: Jun | B12: 200 | C12: 0.5739533333 | D12: 42.22127 | E12: 40 | F12: 0.57588 | G12: 1.427756667 | K12: Jun | L12: 0.09916 | M12: 5.48645 | N12: 0.10866 | O12: 0.39354
A13: Jul | B13: 200 | C13: 0.7281266667 | D13: 30.14003667 | E13: 40 | F13: 0.7314266667 | G13: 1.574676667 | K13: Jul | L13: 0.2406 | M13: 19.08646 | N13: 0.23792 | O13: 0.74962 | Q13: Maximum: for 1/2 hourly and daily periods use the highest value across all operational combustion lines for the month
A14: Aug | B14: 200 | C14: 0.66274 | D14: 64.20169667 | E14: 40 | F14: 0.61753 | G14: 1.181493333 | K14: Aug | L14: 0.15617 | M14: 31.97922 | N14: 0.14025 | O14: 0.69372
A15: Sep | B15: 200 | C15: 0.5165833333 | D15: 23.17958667 | E15: 40 | F15: 0.5275 | G15: 1.018746667 | K15: Sep | L15: 0.14937 | M15: 20.76822 | N15: 0.16968 | O15: 0.69497
A16: Oct | B16: 200 | C16: 0.886085 | D16: 21.852715 | E16: 40 | F16: 0.861475 | G16: 1.39762 | K16: Oct | L16: - | M16: - | N16: - | O16: -
A17: Nov | B17: 200 | C17: 0.4280266667 | D17: 39.09182667 | E17: 40 | F17: 0.4837566667 | G17: 2.25266 | K17: Nov | L17: 0.13734 | M17: 16.12502 | N17: 0.13708 | O17: 0.5904
A18: Dec | B18: 200 | C18: 0.2804166667 | D18: 11.34827333 | E18: 40 | F18: 0.27768 | G18: 0.69143 | K18: Dec | L18: 0.03997 | M18: 3.11512 | N18: 0.03971 | O18: 0.47396
K19: Annual | L19: =AVERAGE(L7:L18) -> 0.1347627273 | M19: =MAX(M7:M18) -> 59.72274 | N19: =AVERAGE(N7:N18) -> 0.1339681818 | O19: =MAX(O7:O18) -> 1.26504
J21: =+A5 -> 2024 | K21: mg/Nm3 | L21: Monthly mean of half-hourly averages | M21: Highest half- hourly average | N21: Monthly mean of daily averages | O21: Highest daily average
J22: A2 | K22: Jan | L22: 0.41647 | M22: 14.33088 | N22: 0.4244 | O22: 0.66784
K23: Feb | L23: 0.67184 | M23: 29.73223 | N23: 0.61534 | O23: 2.13385
K24: Mar | L24: 0.6362 | M24: 16.32229 | N24: 0.55123 | O24: 0.63153
K25: Apr | L25: 1.01289 | M25: 96.91842 | N25: 1.02394 | O25: 4.27538
K26: May | L26: 0.79093 | M26: 63.19521 | N26: 0.85836 | O26: 2.77585
K27: Jun | L27: 1.14809 | M27: 111.20571 | N27: 1.14554 | O27: 2.82488
K28: Jul | L28: 1.38541 | M28: 57.7773 | N28: 1.37188 | O28: 2.83562
K29: Aug | L29: 1.07626 | M29: 148.07516 | N29: 0.92927 | O29: 1.62855
K30: Sep | L30: 0.78155 | M30: 35.26826 | N30: 0.79479 | O30: 1.28936
K31: Oct | L31: 0.99076 | M31: 30.33065 | N31: 0.98429 | O31: 1.6878
K32: Nov | L32: 0.6256 | M32: 68.05973 | N32: 0.66953 | O32: 2.86109
K33: Dec | L33: 0.5214 | M33: 12.63353 | N33: 0.50691 | O33: 0.77368
K34: Annual | L34: =AVERAGE(L22:L33) -> 0.8381166667 | M34: =MAX(M22:M33) -> 148.07516 | N34: =AVERAGE(N22:N33) -> 0.8229566667 | O34: =MAX(O22:O33) -> 4.27538
J36: =+A5 -> 2024 | K36: mg/Nm3 | L36: Monthly mean of half-hourly averages | M36: Highest half- hourly average | N36: Monthly mean of daily averages | O36: Highest daily average
J37: A3 | K37: Jan | L37: 0.17179 | M37: 24.8908 | N37: 0.17244 | O37: 1.08318
K38: Feb | L38: 0.24834 | M38: 11.79018 | N38: 0.24713 | O38: 1.07413
K39: Mar | L39: 0.91725 | M39: 615.23621 | N39: 0.30653 | O39: 1.14465
K40: Apr | L40: 0.22482 | M40: 11.2639 | N40: 0.23104 | O40: 0.63334
K41: May | L41: 0.19035 | M41: 10.68255 | N41: 0.18056 | O41: 0.43729
K42: Jun | L42: 0.47461 | M42: 9.97165 | N42: 0.47344 | O42: 1.06485
K43: Jul | L43: 0.55837 | M43: 13.55635 | N43: 0.58448 | O43: 1.13879
K44: Aug | L44: 0.75579 | M44: 12.55071 | N44: 0.78307 | O44: 1.22221
K45: Sep | L45: 0.61883 | M45: 13.50228 | N45: 0.61803 | O45: 1.07191
K46: Oct | L46: 0.78141 | M46: 13.37478 | N46: 0.73866 | O46: 1.10744
K47: Nov | L47: 0.52114 | M47: 33.09073 | N47: 0.64466 | O47: 3.30649
A48: Comments : | K48: Dec | L48: 0.27988 | M48: 18.29617 | N48: 0.28642 | O48: 0.82665
A49: A1 (line 1) had an outage for a complete month in October (hence no data available) | K49: Annual | L49: =AVERAGE(L37:L48) -> 0.4785483333 | M49: =MAX(M37:M48) -> 615.23621 | N49: =AVERAGE(N37:N48) -> 0.4388716667 | O49: =MAX(O37:O48) -> 3.30649
J51: =+A5 -> 2024 | K51: mg/Nm3 | L51: Monthly mean of half-hourly averages | M51: Highest half- hourly average | N51: Monthly mean of daily averages | O51: Highest daily average
J52: A4 | K52: Jan
K53: Feb
K54: Mar
K55: Apr
K56: May
K57: Jun
K58: Jul
K59: Aug
K60: Sep
K61: Oct
K62: Nov
K63: Dec
K64: Annual | L64: =AVERAGE(L52:L63) ->  | M64: =MAX(M52:M63) -> 0 | N64: =AVERAGE(N52:N63) ->  | O64: =MAX(O52:O63) -> 0
J66: =+A5 -> 2024 | K66: mg/Nm3 | L66: Monthly mean of half-hourly averages | M66: Highest half- hourly average | N66: Monthly mean of daily averages | O66: Highest daily average
J67: A5 | K67: Jan
K68: Feb
K69: Mar
K70: Apr
K71: May
K72: Jun
K73: Jul
K74: Aug
K75: Sep
K76: Oct
K77: Nov
K78: Dec
K79: Annual | L79: =AVERAGE(L67:L78) ->  | M79: =MAX(M67:M78) -> 0 | N79: =AVERAGE(N67:N78) ->  | O79: =MAX(O67:O78) -> 0

Sheet NOx
A1: =+'Cover Page'!$B$29 -> Annual Performance Report 2024 | E1: =+'Cover Page'!$B$33 -> Kent Enviropower Limited
A3: Monitoring of Oxides of Nitrogen emissions | D3: Whole Installation | G3: See Notes in Cell Q3 | J3: =+A3 -> Monitoring of Oxides of Nitrogen emissions | N3: Per Combustion Line | Q3: Notes:
Q4: User to add logic to complete Whole installation, Table A5:G18. From the data in Per Combustion Line, Table J6:O79, subject to No. of lines installed
A5: =+'Cover Page'!C39 -> 2024 | B5: 1/2 Hourly Reference Periods | E5: Daily Reference Periods
A6: mg/Nm3 | B6: 1/2 hourly NOx ELV | C6: Monthly mean of half-hourly averages | D6: Highest half- hourly average | E6: Daily NOx ELV | F6: Monthly mean of daily averages | G6: Highest daily average | J6: =+A5 -> 2024 | K6: mg/Nm3 | L6: Monthly mean of half-hourly averages | M6: Highest half- hourly average | N6: Monthly mean of daily averages | O6: Highest daily average
A7: Jan | B7: 400 | C7: =AVERAGE(L7,L22,L37) -> 121.1134 | D7: =AVERAGE(M7,M22,M37) -> 233.2646 | E7: 180 | F7: =AVERAGE(N7,N22,N37) -> 121.2905333 | G7: =AVERAGE(O7,O22,O37) -> 155.4612 | J7: A1 | K7: Jan | L7: 130.4282 | M7: 240.4585 | N7: 129.9206 | O7: 145.8381
A8: Feb | B8: 400 | C8: =AVERAGE(L8,L23,L38) -> 123.277 | D8: =AVERAGE(M8,M23,M38) -> 218.8165333 | E8: 180 | F8: =AVERAGE(N8,N23,N38) -> 122.6193333 | G8: =AVERAGE(O8,O23,O38) -> 141.0091667 | K8: Feb | L8: 149.5784 | M8: 241.7852 | N8: 149.0019 | O8: 162.5511
A9: Mar | B9: 400 | C9: 115.1452333 | D9: 275.2539 | E9: 180 | F9: 112.9197 | G9: 130.0435 | K9: Mar | L9: 138.8611 | M9: 304.5709 | N9: 139.604 | O9: 164.276 | Q9: Whole Installation table A5:G18:
A10: Apr | B10: 400 | C10: 121.8826333 | D10: 188.3478667 | E10: 180 | F10: 121.9725 | G10: 142.6491 | K10: Apr | L10: 145.2211 | M10: 222.4665 | N10: 144.5745 | O10: 168.5753 | Q10: Mean: for 1/2 hourly and daily periods calculate mean of values across all operational combustion lines for the month
A11: May | B11: 400 | C11: 117.3473333 | D11: 254.6549 | E11: 180 | F11: 116.0099 | G11: 145.7847667 | K11: May | L11: 119.5099 | M11: 167.5617 | N11: 120.7533 | O11: 136.5147
A12: Jun | B12: 400 | C12: 116.8104 | D12: 229.9091 | E12: 180 | F12: 116.1191333 | G12: 134.5183333 | K12: Jun | L12: 132.0809 | M12: 284.893 | N12: 129.2242 | O12: 138.768
A13: Jul | B13: 400 | C13: 113.3658667 | D13: 198.4787333 | E13: 180 | F13: 113.4668 | G13: 154.2159 | K13: Jul | L13: 126.7679 | M13: 199.8287 | N13: 126.6005 | O13: 160.1755 | Q13: Maximum: for 1/2 hourly and daily periods use the highest value across all operational combustion lines for the month
A14: Aug | B14: 400 | C14: 121.3927 | D14: 210.0262667 | E14: 180 | F14: 120.6968333 | G14: 146.8483667 | K14: Aug | L14: 129.3339 | M14: 240.0976 | N14: 128.4123 | O14: 160.2509
A15: Sep | B15: 400 | C15: 115.7098 | D15: 171.0716 | E15: 180 | F15: 116.3374 | G15: 138.3717 | K15: Sep | L15: 121.9009 | M15: 172.1547 | N15: 121.8584 | O15: 136.0866
A16: Oct | B16: 400 | C16: 109.4337 | D16: 191.6815 | E16: 180 | F16: 109.698 | G16: 130.54465 | K16: Oct | L16: - | M16: - | N16: - | O16: -
A17: Nov | B17: 400 | C17: 119.0813 | D17: 200.7901333 | E17: 180 | F17: 118.6229333 | G17: 143.8949 | K17: Nov | L17: 107.2303 | M17: 172.6034 | N17: 107.1834 | O17: 137.3768
A18: Dec | B18: 400 | C18: 123.9581333 | D18: 222.2668 | E18: 180 | F18: 123.6738 | G18: 159.4393667 | K18: Dec | L18: 112.3039 | M18: 244.7935 | N18: 112.1479 | O18: 147.6656
K19: Annual | L19: =AVERAGE(L7:L18) -> 128.4742273 | M19: =MAX(M7:M18) -> 304.5709 | N19: =AVERAGE(N7:N18) -> 128.1164545 | O19: =MAX(O7:O18) -> 168.5753
J21: =+A5 -> 2024 | K21: mg/Nm3 | L21: Monthly mean of half-hourly averages | M21: Highest half- hourly average | N21: Monthly mean of daily averages | O21: Highest daily average
J22: A2 | K22: Jan | L22: 143.4841 | M22: 190.8718 | N22: 144.2818 | O22: 163.339
K23: Feb | L23: 121.778 | M23: 229.2708 | N23: 122.1 | O23: 139.4869
K24: Mar | L24: 117.2267 | M24: 184.2012 | N24: 112.0825 | O24: 113.1367
K25: Apr | L25: 129.0803 | M25: 190.0171 | N25: 129.5477 | O25: 156.5703
K26: May | L26: 120.3554 | M26: 276.5127 | N26: 118.0837 | O26: 146.1261
K27: Jun | L27: 126.0215 | M27: 248.722 | N27: 126.6515 | O27: 155.968
K28: Jul | L28: 124.5335 | M28: 215.234 | N28: 124.3041 | O28: 163.896
K29: Aug | L29: 134.6482 | M29: 236.0119 | N29: 132.8127 | O29: 163.5414
K30: Sep | L30: 129.5028 | M30: 195.5911 | N30: 131.3738 | O30: 167.1141
K31: Oct | L31: 122.6257 | M31: 210.7069 | N31: 122.9125 | O31: 142.3363
K32: Nov | L32: 137.6148 | M32: 234.0727 | N32: 137.665 | O32: 158.1245
K33: Dec | L33: 135.9792 | M33: 211.716 | N33: 135.0349 | O33: 165.0174
K34: Annual | L34: =AVERAGE(L22:L33) -> 128.57085 | M34: =MAX(M22:M33) -> 276.5127 | N34: =AVERAGE(N22:N33) -> 128.07085 | O34: =MAX(O22:O33) -> 167.1141
J36: =+A5 -> 2024 | K36: mg/Nm3 | L36: Monthly mean of half-hourly averages | M36: Highest half- hourly average | N36: Monthly mean of daily averages | O36: Highest daily average
J37: A3 | K37: Jan | L37: 89.4279 | M37: 268.4635 | N37: 89.6692 | O37: 157.2065
K38: Feb | L38: 98.4746 | M38: 185.3936 | N38: 96.7561 | O38: 120.9895
K39: Mar | L39: 89.3479 | M39: 336.9896 | N39: 87.0726 | O39: 112.7178
K40: Apr | L40: 91.3465 | M40: 152.56 | N40: 91.7953 | O40: 102.8017
K41: May | L41: 112.1767 | M41: 319.8903 | N41: 109.1927 | O41: 154.7135
K42: Jun | L42: 92.3288 | M42: 156.1123 | N42: 92.4817 | O42: 108.819
K43: Jul | L43: 88.7962 | M43: 180.3735 | N43: 89.4958 | O43: 138.5762
K44: Aug | L44: 100.196 | M44: 153.9693 | N44: 100.8655 | O44: 116.7528
K45: Sep | L45: 95.7257 | M45: 145.469 | N45: 95.78 | O45: 111.9144
K46: Oct | L46: 96.2417 | M46: 172.6561 | N46: 96.4835 | O46: 118.753
K47: Nov | L47: 112.3988 | M47: 195.6943 | N47: 111.0204 | O47: 136.1834
A48: Comments : | K48: Dec | L48: 123.5913 | M48: 210.2909 | N48: 123.8386 | O48: 165.6351
A49: A1 (line 1) had an outage for a complete month in October (hence no data available) | K49: Annual | L49: =AVERAGE(L37:L48) -> 99.17100833 | M49: =MAX(M37:M48) -> 336.9896 | N49: =AVERAGE(N37:N48) -> 98.70428333 | O49: =MAX(O37:O48) -> 165.6351
J51: =+A5 -> 2024 | K51: mg/Nm3 | L51: Monthly mean of half-hourly averages | M51: Highest half- hourly average | N51: Monthly mean of daily averages | O51: Highest daily average
J52: A4 | K52: Jan
K53: Feb
K54: Mar
K55: Apr
K56: May
K57: Jun
K58: Jul
K59: Aug
K60: Sep
K61: Oct
K62: Nov
K63: Dec
K64: Annual | L64: =AVERAGE(L52:L63) ->  | M64: =MAX(M52:M63) -> 0 | N64: =AVERAGE(N52:N63) ->  | O64: =MAX(O52:O63) -> 0
J66: =+A5 -> 2024 | K66: mg/Nm3 | L66: Monthly mean of half-hourly averages | M66: Highest half- hourly average | N66: Monthly mean of daily averages | O66: Highest daily average
J67: A5 | K67: Jan
K68: Feb
K69: Mar
K70: Apr
K71: May
K72: Jun
K73: Jul
K74: Aug
K75: Sep
K76: Oct
K77: Nov
K78: Dec
K79: Annual | L79: =AVERAGE(L67:L78) ->  | M79: =MAX(M67:M78) -> 0 | N79: =AVERAGE(N67:N78) ->  | O79: =MAX(O67:O78) -> 0

Sheet TOC
A1: =+'Cover Page'!$B$29 -> Annual Performance Report 2024 | E1: =+'Cover Page'!$B$33 -> Kent Enviropower Limited
A3: Monitoring of Total organic carbon emissions | D3: Whole Installation | G3: See Notes in Cell Q3 | J3: =+A3 -> Monitoring of Total organic carbon emissions | N3: Per Combustion Line | Q3: Notes:
Q4: User to add logic to complete Whole installation, Table A5:G18. From the data in Per Combustion Line, Table J6:O79, subject to No. of lines installed
A5: =+'Cover Page'!C39 -> 2024 | B5: 1/2 Hourly Reference Periods | E5: Daily Reference Periods
A6: mg/Nm3 | B6: 1/2 hourly TOC ELV | C6: Monthly mean of half-hourly averages | D6: Highest half- hourly average | E6: Daily TOC ELV | F6: Monthly mean of daily averages | G6: Highest daily average | J6: =+A5 -> 2024 | K6: mg/Nm3 | L6: Monthly mean of half-hourly averages | M6: Highest half- hourly average | N6: Monthly mean of daily averages | O6: Highest daily average
A7: Jan | B7: 10 | C7: =AVERAGE(L7,L22,L37) -> 0.2929513333 | D7: =AVERAGE(M7,M22,M37) -> 13.05667533 | E7: 10 | F7: =AVERAGE(N7,N22,N37) -> 0.2855846667 | G7: =AVERAGE(O7,O22,O37) -> 0.7437423333 | J7: A1 | K7: Jan | L7: 0.285502 | M7: 4.783061 | N7: 0.277697 | O7: 0.483712
A8: Feb | B8: 10 | C8: =AVERAGE(L8,L23,L38) -> 0.4284513333 | D8: =AVERAGE(M8,M23,M38) -> 9.89634 | E8: 10 | F8: =AVERAGE(N8,N23,N38) -> 0.386514 | G8: =AVERAGE(O8,O23,O38) -> 0.9040446667 | K8: Feb | L8: 0.35504 | M8: 3.856868 | N8: 0.353082 | O8: 0.466507
A9: Mar | B9: 10 | C9: 0.3818383333 | D9: 17.66146033 | E9: 10 | F9: 0.315711 | G9: 0.6165273333 | K9: Mar | L9: 0.434297 | M9: 38.381546 | N9: 0.408434 | O9: 1.157755 | Q9: Whole Installation table A5:G18:
A10: Apr | B10: 10 | C10: 0.4204666667 | D10: 51.11980567 | E10: 10 | F10: 0.4224196667 | G10: 2.813826333 | K10: Apr | L10: 0.296791 | M10: 2.83579 | N10: 0.297745 | O10: 0.46007 | Q10: Mean: for 1/2 hourly and daily periods calculate mean of values across all operational combustion lines for the month
A11: May | B11: 10 | C11: 0.461562 | D11: 26.68949867 | E11: 10 | F11: 0.4288996667 | G11: 1.217566 | K11: May | L11: 0.397145 | M11: 12.381188 | N11: 0.391915 | O11: 0.944466
A12: Jun | B12: 10 | C12: 0.5473543333 | D12: 50.82616367 | E12: 10 | F12: 0.5273983333 | G12: 1.649743333 | K12: Jun | L12: 0.509787 | M12: 17.791342 | N12: 0.4706 | O12: 0.77445
A13: Jul | B13: 10 | C13: 0.5457523333 | D13: 28.63939867 | E13: 10 | F13: 0.515544 | G13: 0.9964176667 | K13: Jul | L13: 0.532996 | M13: 14.618042 | N13: 0.533427 | O13: 1.095582 | Q13: Maximum: for 1/2 hourly and daily periods use the highest value across all operational combustion lines for the month
A14: Aug | B14: 10 | C14: 0.757163 | D14: 78.18842967 | E14: 10 | F14: 0.691329 | G14: 2.902095667 | K14: Aug | L14: 0.48528 | M14: 38.034634 | N14: 0.394931 | O14: 0.986364
A15: Sep | B15: 10 | C15: 0.625387 | D15: 19.62064533 | E15: 10 | F15: 0.5994343333 | G15: 1.167523667 | K15: Sep | L15: 0.379939 | M15: 18.218567 | N15: 0.382313 | O15: 0.664887
A16: Oct | B16: 10 | C16: 0.673486 | D16: 18.483153 | E16: 10 | F16: 0.575463 | G16: 1.164785 | K16: Oct | L16: - | M16: - | N16: - | O16: -
A17: Nov | B17: 10 | C17: 0.4621956667 | D17: 12.654901 | E17: 10 | F17: 0.3949293333 | G17: 1.190294 | K17: Nov | L17: 0.285259 | M17: 6.406559 | N17: 0.285136 | O17: 0.623125
A18: Dec | B18: 10 | C18: 0.3317516667 | D18: 19.66349233 | E18: 10 | F18: 0.3027026667 | G18: 0.910905 | K18: Dec | L18: 0.198523 | M18: 2.43448 | N18: 0.20096 | O18: 0.321734
K19: Annual | L19: =AVERAGE(L7:L18) -> 0.3782326364 | M19: =MAX(M7:M18) -> 38.381546 | N19: =AVERAGE(N7:N18) -> 0.3632945455 | O19: =MAX(O7:O18) -> 1.157755
J21: =+A5 -> 2024 | K21: mg/Nm3 | L21: Monthly mean of half-hourly averages | M21: Highest half- hourly average | N21: Monthly mean of daily averages | O21: Highest daily average
J22: A2 | K22: Jan | L22: 0.301567 | M22: 27.583452 | N22: 0.28869 | O22: 0.995891
K23: Feb | L23: 0.511198 | M23: 15.354572 | N23: 0.40181 | O23: 1.312059
K24: Mar | L24: 0.381311 | M24: 10.996119 | N24: 0.226389 | O24: 0.28895
K25: Apr | L25: 0.623871 | M25: 144.364365 | N25: 0.636023 | O25: 7.469258
K26: May | L26: 0.568063 | M26: 57.820431 | N26: 0.511974 | O26: 2.034005
K27: Jun | L27: 0.569162 | M27: 97.990898 | N27: 0.549672 | O27: 2.28994
K28: Jul | L28: 0.748004 | M28: 59.001385 | N28: 0.654074 | O28: 1.292111
K29: Aug | L29: 0.763846 | M29: 33.888596 | N29: 0.678248 | O29: 1.692431
K30: Sep | L30: 0.744896 | M30: 24.031265 | N30: 0.700003 | O30: 1.411131
K31: Oct | L31: 0.510326 | M31: 14.966829 | N31: 0.490269 | O31: 1.056269
K32: Nov | L32: 0.38598 | M32: 16.769117 | N32: 0.33798 | O32: 1.292471
K33: Dec | L33: 0.366754 | M33: 33.176517 | N33: 0.320327 | O33: 1.207981
K34: Annual | L34: =AVERAGE(L22:L33) -> 0.5395815 | M34: =MAX(M22:M33) -> 144.364365 | N34: =AVERAGE(N22:N33) -> 0.4829549167 | O34: =MAX(O22:O33) -> 7.469258
J36: =+A5 -> 2024 | K36: mg/Nm3 | L36: Monthly mean of half-hourly averages | M36: Highest half- hourly average | N36: Monthly mean of daily averages | O36: Highest daily average
J37: A3 | K37: Jan | L37: 0.291785 | M37: 6.803513 | N37: 0.290367 | O37: 0.751624
K38: Feb | L38: 0.419116 | M38: 10.47758 | N38: 0.40465 | O38: 0.933568
K39: Mar | L39: 0.329907 | M39: 3.606716 | N39: 0.31231 | O39: 0.402877
K40: Apr | L40: 0.340738 | M40: 6.159262 | N40: 0.333491 | O40: 0.512151
K41: May | L41: 0.419478 | M41: 9.866877 | N41: 0.38281 | O41: 0.674227
K42: Jun | L42: 0.563114 | M42: 36.696251 | N42: 0.561923 | O42: 1.88484
K43: Jul | L43: 0.356257 | M43: 12.298769 | N43: 0.359131 | O43: 0.60156
K44: Aug | L44: 1.022363 | M44: 162.642059 | N44: 1.000808 | O44: 6.027492
K45: Sep | L45: 0.751326 | M45: 16.612104 | N45: 0.715987 | O45: 1.426553
K46: Oct | L46: 0.836646 | M46: 21.999477 | N46: 0.660657 | O46: 1.273301
K47: Nov | L47: 0.715348 | M47: 14.789027 | N47: 0.561672 | O47: 1.655286
A48: Comments : | K48: Dec | L48: 0.429978 | M48: 23.37948 | N48: 0.386821 | O48: 1.203
A49: A1 (line 1) had an outage for a complete month in October (hence no data available) | K49: Annual | L49: =AVERAGE(L37:L48) -> 0.5396713333 | M49: =MAX(M37:M48) -> 162.642059 | N49: =AVERAGE(N37:N48) -> 0.49755225 | O49: =MAX(O37:O48) -> 6.027492
J51: =+A5 -> 2024 | K51: mg/Nm3 | L51: Monthly mean of half-hourly averages | M51: Highest half- hourly average | N51: Monthly mean of daily averages | O51: Highest daily average
J52: A4 | K52: Jan
K53: Feb
K54: Mar
K55: Apr
K56: May
K57: Jun
K58: Jul
K59: Aug
K60: Sep
K61: Oct
K62: Nov
K63: Dec
K64: Annual | L64: =AVERAGE(L52:L63) ->  | M64: =MAX(M52:M63) -> 0 | N64: =AVERAGE(N52:N63) ->  | O64: =MAX(O52:O63) -> 0
J66: =+A5 -> 2024 | K66: mg/Nm3 | L66: Monthly mean of half-hourly averages | M66: Highest half- hourly average | N66: Monthly mean of daily averages | O66: Highest daily average
J67: A5 | K67: Jan
K68: Feb
K69: Mar
K70: Apr
K71: May
K72: Jun
K73: Jul
K74: Aug
K75: Sep
K76: Oct
K77: Nov
K78: Dec
K79: Annual | L79: =AVERAGE(L67:L78) ->  | M79: =MAX(M67:M78) -> 0 | N79: =AVERAGE(N67:N78) ->  | O79: =MAX(O67:O78) -> 0

Sheet Particulates
A1: =+'Cover Page'!$B$29 -> Annual Performance Report 2024 | E1: =+'Cover Page'!$B$33 -> Kent Enviropower Limited
A3: Monitoring of Particulate matter emissions | D3: Whole Installation | G3: See Notes in Cell Q3 | J3: =+A3 -> Monitoring of Particulate matter emissions | N3: Per Combustion Line | Q3: Notes:
A5: =+'Cover Page'!C39 -> 2024 | B5: 1/2 Hourly Reference Periods | E5: Daily Reference Periods | Q5: User to add logic to complete Whole installation, Table A5:G18. From the data in Per Combustion Line, Table J6:O79, subject to No. of lines installed
A6: mg/Nm3 | B6: 1/2 hourly PM ELV | C6: Monthly mean of half-hourly averages | D6: Highest half- hourly average | E6: Daily PM ELV | F6: Monthly mean of daily averages | G6: Highest daily average | J6: =+A5 -> 2024 | K6: mg/Nm3 | L6: Monthly mean of half-hourly averages | M6: Highest half- hourly average | N6: Monthly mean of daily averages | O6: Highest daily average
A7: Jan | B7: 30 | C7: =AVERAGE(L7,L22,L37) -> 2.575083333 | D7: =AVERAGE(M7,M22,M37) -> 6.268616667 | E7: 5 | F7: =AVERAGE(N7,N22,N37) -> 2.529464333 | G7: =AVERAGE(O7,O22,O37) -> 3.320854333 | J7: A1 | K7: Jan | L7: 2.25264 | M7: 7.87779 | N7: 2.173733 | O7: 3.296773
A8: Feb | B8: 30 | C8: =AVERAGE(L8,L23,L38) -> 2.995643333 | D8: =AVERAGE(M8,M23,M38) -> 6.732166667 | E8: 5 | F8: =AVERAGE(N8,N23,N38) -> 2.969076333 | G8: =AVERAGE(O8,O23,O38) -> 3.550177 | K8: Feb | L8: 2.80302 | M8: 5.16804 | N8: 2.757349 | O8: 3.251681
A9: Mar | B9: 30 | C9: 2.097016667 | D9: 4.736216667 | E9: 5 | F9: 2.090434667 | G9: 2.568914333 | K9: Mar | L9: 2.68433 | M9: 5.72726 | N9: 2.676094 | O9: 3.323073
A10: Apr | B10: 30 | C10: 2.714126667 | D10: 7.21275 | E10: 5 | F10: 2.679079667 | G10: 3.885841333 | K10: Apr | L10: 2.978 | M10: 7.03565 | N10: 2.965959 | O10: 3.781274 | Q10: Whole Installation table A5:G18:
A11: May | B11: 30 | C11: 2.508563333 | D11: 7.908693333 | E11: 5 | F11: 2.366579 | G11: 3.230340333 | K11: May | L11: 2.1355 | M11: 7.76809 | N11: 2.033947 | O11: 2.687941 | Q11: Mean: for 1/2 hourly and daily periods calculate mean of values across all operational combustion lines for the month
A12: Jun | B12: 30 | C12: 3.211066667 | D12: 8.934396667 | E12: 5 | F12: 3.012739 | G12: 3.886190667 | K12: Jun | L12: 3.34011 | M12: 9.87716 | N12: 2.790267 | O12: 3.122772
A13: Jul | B13: 30 | C13: 2.91601 | D13: 7.073883333 | E13: 5 | F13: 2.910961 | G13: 4.186645 | K13: Jul | L13: 2.35928 | M13: 6.42113 | N13: 2.324653 | O13: 3.518415
A14: Aug | B14: 30 | C14: 3.21361 | D14: 7.444276667 | E14: 5 | F14: 3.148985667 | G14: 4.136602 | K14: Aug | L14: 3.0109 | M14: 5.90411 | N14: 2.970057 | O14: 3.935216 | Q14: Maximum: for 1/2 hourly and daily periods use the highest value across all operational combustion lines for the month
A15: Sep | B15: 30 | C15: 3.44926 | D15: 10.75039333 | E15: 5 | F15: 3.370163333 | G15: 4.458806333 | K15: Sep | L15: 3.45588 | M15: 7.29379 | N15: 3.44181 | O15: 4.343509
A16: Oct | B16: 30 | C16: 3.2672 | D16: 10.05061 | E16: 5 | F16: 3.12677 | G16: 4.095895 | K16: Oct | L16: - | M16: - | N16: - | O16: -
A17: Nov | B17: 30 | C17: 3.748186667 | D17: 8.79808 | E17: 5 | F17: 2.924707667 | G17: 3.661133 | K17: Nov | L17: 0.84753 | M17: 1.25245 | N17: 0.847243 | O17: 0.999749
A18: Dec | B18: 30 | C18: 1.120183333 | D18: 7.795383333 | E18: 5 | F18: 1.085151667 | G18: 1.808986 | K18: Dec | L18: 0.98666 | M18: 2.39763 | N18: 0.988995 | O18: 1.069078
K19: Annual | L19: =AVERAGE(L7:L18) -> 2.441259091 | M19: =MAX(M7:M18) -> 9.87716 | N19: =AVERAGE(N7:N18) -> 2.360918818 | O19: =MAX(O7:O18) -> 4.343509
J21: =+A5 -> 2024 | K21: mg/Nm3 | L21: Monthly mean of half-hourly averages | M21: Highest half- hourly average | N21: Monthly mean of daily averages | O21: Highest daily average
J22: A2 | K22: Jan | L22: 2.63284 | M22: 5.15678 | N22: 2.5925 | O22: 3.29283
K23: Feb | L23: 3.0704 | M23: 8.82796 | N23: 2.9964 | O23: 3.7008
K24: Mar | L24: 1.01124 | M24: 2.44506 | N24: 1.03911 | O24: 1.13612
K25: Apr | L25: 2.43127 | M25: 6.77735 | N25: 2.3618 | O25: 3.18764
K26: May | L26: 2.74287 | M26: 11.59066 | N26: 2.47323 | O26: 3.90096
K27: Jun | L27: 3.12682 | M27: 10.35642 | N27: 3.09892 | O27: 4.53819
K28: Jul | L28: 3.23523 | M28: 8.16048 | N28: 3.2311 | O28: 4.55347
K29: Aug | L29: 3.41877 | M29: 6.87323 | N29: 3.39724 | O29: 4.31167
K30: Sep | L30: 3.75662 | M30: 12.68091 | N30: 3.55027 | O30: 4.3693
K31: Oct | L31: 3.42258 | M31: 8.96066 | N31: 3.37652 | O31: 4.63957
K32: Nov | L32: 4.08036 | M32: 7.46387 | N32: 4.04699 | O32: 4.73784
K33: Dec | L33: 0.99584 | M33: 1.65159 | N33: 0.99245 | O33: 1.26362
K34: Annual | L34: =AVERAGE(L22:L33) -> 2.82707 | M34: =MAX(M22:M33) -> 12.68091 | N34: =AVERAGE(N22:N33) -> 2.763044167 | O34: =MAX(O22:O33) -> 4.73784
J36: =+A5 -> 2024 | K36: mg/Nm3 | L36: Monthly mean of half-hourly averages | M36: Highest half- hourly average | N36: Monthly mean of daily averages | O36: Highest daily average
J37: A3 | K37: Jan | L37: 2.83977 | M37: 5.77128 | N37: 2.82216 | O37: 3.37296
K38: Feb | L38: 3.11351 | M38: 6.2005 | N38: 3.15348 | O38: 3.69805
K39: Mar | L39: 2.59548 | M39: 6.03633 | N39: 2.5561 | O39: 3.24755
K40: Apr | L40: 2.73311 | M40: 7.82525 | N40: 2.70948 | O40: 4.68861
K41: May | L41: 2.64732 | M41: 4.36733 | N41: 2.59256 | O41: 3.10212
K42: Jun | L42: 3.16627 | M42: 6.56961 | N42: 3.14903 | O42: 3.99761
K43: Jul | L43: 3.15352 | M43: 6.64004 | N43: 3.17713 | O43: 4.48805
K44: Aug | L44: 3.21116 | M44: 9.55549 | N44: 3.07966 | O44: 4.16292
K45: Sep | L45: 3.13528 | M45: 12.27648 | N45: 3.11841 | O45: 4.66361
K46: Oct | L46: 3.11182 | M46: 11.14056 | N46: 2.87702 | O46: 3.55222
K47: Nov | L47: 6.31667 | M47: 17.67792 | N47: 3.87989 | O47: 5.24581
A48: Comments : | K48: Dec | L48: 1.37805 | M48: 19.33693 | N48: 1.27401 | O48: 3.09426
A49: A1 (line 1) had an outage for a complete month in October (hence no data available) | K49: Annual | L49: =AVERAGE(L37:L48) -> 3.11683 | M49: =MAX(M37:M48) -> 19.33693 | N49: =AVERAGE(N37:N48) -> 2.865744167 | O49: =MAX(O37:O48) -> 5.24581
J51: =+A5 -> 2024 | K51: mg/Nm3 | L51: Monthly mean of half-hourly averages | M51: Highest half- hourly average | N51: Monthly mean of daily averages | O51: Highest daily average
J52: A4 | K52: Jan
K53: Feb
K54: Mar
K55: Apr
K56: May
K57: Jun
K58: Jul
K59: Aug
K60: Sep
K61: Oct
K62: Nov
K63: Dec
K64: Annual | L64: =AVERAGE(L52:L63) ->  | M64: =MAX(M52:M63) -> 0 | N64: =AVERAGE(N52:N63) ->  | O64: =MAX(O52:O63) -> 0
J66: =+A5 -> 2024 | K66: mg/Nm3 | L66: Monthly mean of half-hourly averages | M66: Highest half- hourly average | N66: Monthly mean of daily averages | O66: Highest daily average
J67: A5 | K67: Jan
K68: Feb
K69: Mar
K70: Apr
K71: May
K72: Jun
K73: Jul
K74: Aug
K75: Sep
K76: Oct
K77: Nov
K78: Dec
K79: Annual | L79: =AVERAGE(L67:L78) ->  | M79: =MAX(M67:M78) -> 0 | N79: =AVERAGE(N67:N78) ->  | O79: =MAX(O67:O78) -> 0

Sheet CO 0.5 hourly
A1: =+'Cover Page'!$B$29 -> Annual Performance Report 2024 | E1: =+'Cover Page'!$B$33 -> Kent Enviropower Limited
A3: Monitoring of Carbon Monoxide (half hourly) | D3: Whole Installation | G3: See Notes in Cell Q3 | J3: =+A3 -> Monitoring of Carbon Monoxide (half hourly) | N3: Per Combustion Line | Q3: Notes:
A5: Please complete this tab for your plant if you have 1/2 hourly CO ELVs; otherwise, leave it blank and complete the CO 95% 10 min tab
Q7: User to add logic to complete Whole installation, Table A5:G18. From the data in Per Combustion Line, Table J6:O79, subject to No. of lines installed
A8: =+'Cover Page'!C39 -> 2024 | B8: 1/2 Hourly Reference Periods | E8: Daily Reference Periods
A9: mg/Nm3 | B9: 1/2 hourly CO ELV | C9: Monthly mean of half-hourly averages | D9: Highest half- hourly average | E9: Daily CO ELV | F9: Monthly mean of daily averages | G9: Highest daily average | J9: =+A8 -> 2024 | K9: mg/Nm3 | L9: Monthly mean of half-hourly averages | M9: Highest half- hourly average | N9: Monthly mean of daily averages | O9: Highest daily average
A10: Jan | B10: 100 | E10: 50 | J10: A1 | K10: Jan
A11: Feb | B11: =+B10 -> 100 | E11: =+E10 -> 50 | K11: Feb
A12: Mar | B12: =+B11 -> 100 | E12: =+E11 -> 50 | K12: Mar | Q12: Whole Installation table A5:G18:
A13: Apr | B13: 100 | E13: 50 | K13: Apr | Q13: Mean: for 1/2 hourly and daily periods calculate mean of values across all operational combustion lines for the month
A14: May | B14: 100 | E14: 50 | K14: May
A15: Jun | B15: 100 | E15: 50 | K15: Jun
A16: Jul | B16: 100 | E16: 50 | K16: Jul | Q16: Maximum: for 1/2 hourly and daily periods use the highest value across all operational combustion lines for the month
A17: Aug | B17: 100 | E17: 50 | K17: Aug
A18: Sep | B18: 100 | E18: 50 | K18: Sep
A19: Oct | B19: 100 | E19: 50 | K19: Oct
A20: Nov | B20: 100 | E20: 50 | K20: Nov
A21: Dec | B21: 100 | E21: 50 | K21: Dec
K22: Annual | L22: =AVERAGE(L10:L21) ->  | M22: =MAX(M10:M21) -> 0 | N22: =AVERAGE(N10:N21) ->  | O22: =MAX(O10:O21) -> 0
J24: =+A8 -> 2024 | K24: mg/Nm3 | L24: Monthly mean of half-hourly averages | M24: Highest half- hourly average | N24: Monthly mean of daily averages | O24: Highest daily average
J25: A2 | K25: Jan
K26: Feb
K27: Mar
K28: Apr
K29: May
K30: Jun
K31: Jul
K32: Aug
K33: Sep
K34: Oct
K35: Nov
K36: Dec
K37: Annual | L37: =AVERAGE(L25:L36) ->  | M37: =MAX(M25:M36) -> 0 | N37: =AVERAGE(N25:N36) ->  | O37: =MAX(O25:O36) -> 0
J39: =+A8 -> 2024 | K39: mg/Nm3 | L39: Monthly mean of half-hourly averages | M39: Highest half- hourly average | N39: Monthly mean of daily averages | O39: Highest daily average
J40: A3 | K40: Jan
K41: Feb
K42: Mar
K43: Apr
K44: May
K45: Jun
K46: Jul
K47: Aug
K48: Sep
K49: Oct
K50: Nov
A51: Comments : | K51: Dec
K52: Annual | L52: =AVERAGE(L40:L51) ->  | M52: =MAX(M40:M51) -> 0 | N52: =AVERAGE(N40:N51) ->  | O52: =MAX(O40:O51) -> 0
J54: =+A8 -> 2024 | K54: mg/Nm3 | L54: Monthly mean of half-hourly averages | M54: Highest half- hourly average | N54: Monthly mean of daily averages | O54: Highest daily average
J55: A4 | K55: Jan
K56: Feb
K57: Mar
K58: Apr
K59: May
K60: Jun
K61: Jul
K62: Aug
K63: Sep
K64: Oct
K65: Nov
K66: Dec
K67: Annual | L67: =AVERAGE(L55:L66) ->  | M67: =MAX(M55:M66) -> 0 | N67: =AVERAGE(N55:N66) ->  | O67: =MAX(O55:O66) -> 0
J69: =+A8 -> 2024 | K69: mg/Nm3 | L69: Monthly mean of half-hourly averages | M69: Highest half- hourly average | N69: Monthly mean of daily averages | O69: Highest daily average
J70: A5 | K70: Jan
K71: Feb
K72: Mar
K73: Apr
K74: May
K75: Jun
K76: Jul
K77: Aug
K78: Sep
K79: Oct
K80: Nov
K81: Dec
K82: Annual | L82: =AVERAGE(L70:L81) ->  | M82: =MAX(M70:M81) -> 0 | N82: =AVERAGE(N70:N81) ->  | O82: =MAX(O70:O81) -> 0

Sheet CO 95% 10 min
A1: =+'Cover Page'!$B$29 -> Annual Performance Report 2024 | E1: =+'Cover Page'!$B$33 -> Kent Enviropower Limited
A3: Monitoring of Carbon Monoxide (10-minute avg) | E3: Whole Installation | H3: See Notes in Cell S3 | J3: =+A3 -> Monitoring of Carbon Monoxide (10-minute avg) | O3: Per Combustion Line | Q3: Notes: | S3: Notes:
A5: Please complete this tab for your plant if you have 10-minute average CO ELVs; otherwise, leave it blank and complete the CO 0.5 hourly tab
S7: User to add logic to complete Whole installation, Table A5:H18. From the data in Per Combustion Line, Table K6:Q79, subject to No. of lines installed
A8: =+'Cover Page'!C39 -> 2024 | B8: 10-minute Reference Periods | F8: Daily Reference Periods
A9: mg/Nm3 | B9: 95%ile 10-min avg CO ELV | C9: Highest daily 95%ile 10-min average | D9: Monthly mean of 10-min averages | E9: Highest 10-min average | F9: Daily CO ELV | G9: Monthly mean of daily averages | H9: Highest daily average | K9: =+A8 -> 2024 | L9: mg/Nm3 | M9: Highest daily 95%ile 10-min average | N9: Monthly mean of 10-min averages | O9: Highest 10-min average | P9: Monthly mean of daily averages | Q9: Highest daily average
A10: Jan | B10: 150 | C10: =AVERAGE(M10,M25,M40) -> 2.790666667 | D10: =AVERAGE(N10,N25,N40) -> 1.809533333 | E10: =AVERAGE(O10,O25,O40) -> 828.5589 | F10: 50 | G10: =AVERAGE(P10,P25,P40) -> 1.688133333 | H10: =AVERAGE(Q10,Q25,Q40) -> 12.84436667 | K10: A1 | L10: Jan | M10: 0.1721 | N10: 0.4923 | O10: 618.8365 | P10: 0.4551 | Q10: 5.1467
A11: Feb | B11: =+B10 -> 150 | C11: =AVERAGE(M11,M26,M41) -> 8.836733333 | D11: =AVERAGE(N11,N26,N41) -> 2.9272 | E11: =AVERAGE(O11,O26,O41) -> 678.8657 | F11: =+F10 -> 50 | G11: =AVERAGE(P11,P26,P41) -> 2.406533333 | H11: =AVERAGE(Q11,Q26,Q41) -> 10.60816667 | L11: Feb | M11: 0.242 | N11: 0.7506 | O11: 355.9308 | P11: 0.749 | Q11: 3.6366
A12: Mar | B12: =+B11 -> 150 | C12: 7.066733333 | D12: 4.080766667 | E12: 1611.497033 | F12: =+F11 -> 50 | G12: 2.257366667 | H12: 13.73973333 | L12: Mar | M12: 0.6501 | N12: 3.8519 | O12: 3304.4609 | P12: 3.1886 | Q12: 29.5496 | S12: Whole Installation table A5:H18:
A13: Apr | B13: 150 | C13: 8.1821 | D13: 3.323466667 | E13: 1317.7811 | F13: 50 | G13: 3.322266667 | H13: 26.16093333 | L13: Apr | M13: 0.4123 | N13: 0.5869 | O13: 122.1512 | P13: 0.5687 | Q13: 2.2834 | S13: Mean: for 10-min and daily periods use average of all operational combustion lines.
A14: May | B14: 150 | C14: 13.57953333 | D14: 4.593366667 | E14: 1559.624767 | F14: 50 | G14: 4.206566667 | H14: 28.9283 | L14: May | M14: 1.661 | N14: 1.3441 | O14: 300.0372 | P14: 1.2784 | Q14: 10.7379
A15: Jun | B15: 150 | C15: 21.34346667 | D15: 5.291 | E15: 937.9156 | F15: 50 | G15: 4.916433333 | H15: 17.1492 | L15: Jun | M15: 3.4356 | N15: 2.6096 | O15: 614.5385 | P15: 1.9189 | Q15: 5.0241
A16: Jul | B16: 150 | C16: 37.48763333 | D16: 8.209833333 | E16: 1601.500133 | F16: 50 | G16: 7.475366667 | H16: 19.22593333 | L16: Jul | M16: 19.5564 | N16: 4.9066 | O16: 704.5306 | P16: 4.9874 | Q16: 14.0738 | S16: Maximum: for 10-min and daily periods use the highest of all operational combustion lines in any month.
A17: Aug | B17: 150 | C17: 38.8777 | D17: 9.253333333 | E17: 1347.4444 | F17: 50 | G17: 7.829966667 | H17: 21.60693333 | L17: Aug | M17: 9.5608 | N17: 5.4109 | O17: 1846.7087 | P17: 3.1211 | Q17: 13.2501
A18: Sep | B18: 150 | C18: 38.23283333 | D18: 7.8106 | E18: 817.0045 | F18: 50 | G18: 7.2582 | H18: 15.3746 | L18: Sep | M18: 7.208 | N18: 2.8553 | O18: 441.8176 | P18: 2.8081 | Q18: 7.5533
A19: Oct | B19: 150 | C19: 36.1157 | D19: 7.2037 | E19: 770.6258 | F19: 50 | G19: 6.4806 | H19: 15.45285 | L19: Oct | M19: - | N19: - | O19: - | P19: - | Q19: -
A20: Nov | B20: 150 | C20: 21.4408 | D20: 5.175666667 | E20: 830.0676333 | F20: 50 | G20: 3.9027 | H20: 14.2521 | L20: Nov | M20: 1.0373 | N20: 1.8065 | O20: 531.6227 | P20: 1.6667 | Q20: 11.507
A21: Dec | B21: 150 | C21: 6.268566667 | D21: 3.1676 | E21: 1078.723767 | F21: 50 | G21: 2.377233333 | H21: 14.21723333 | L21: Dec | M21: 0.7808 | N21: 0.8404 | O21: 438.5564 | P21: 0.84 | Q21: 6.1813
L22: Annual | M22: =AVERAGE(M10:M21) -> 4.065127273 | O22: =MAX(O10:O21) -> 3304.4609 | P22: =AVERAGE(P10:P21) -> 1.962 | Q22: =MAX(Q10:Q21) -> 29.5496
K24: =+A8 -> 2024 | L24: mg/Nm3 | M24: Highest daily 95%ile 10-min average | N24: Monthly mean of 10-min averages | O24: Highest 10-min average | P24: Monthly mean of daily averages | Q24: Highest daily average
K25: A2 | L25: Jan | M25: 1.2272 | N25: 2.5918 | O25: 822.129 | P25: 2.3101 | Q25: 13.0978
L26: Feb | M26: 20.5213 | N26: 5.7849 | O26: 886.8525 | P26: 4.5072 | Q26: 17.2273
L27: Mar | M27: 12.1585 | N27: 5.6279 | O27: 728.8947 | P27: 1.2853 | Q27: 2.4911
L28: Apr | M28: 12.2201 | N28: 5.8723 | O28: 3347.5847 | P28: 6.1109 | Q28: 64.6471
L29: May | M29: 27.201 | N29: 8.3163 | O29: 3865.3022 | P29: 7.5261 | Q29: 55.8426
L30: Jun | M30: 25.6062 | N30: 5.9837 | O30: 1380.5835 | P30: 5.7128 | Q30: 14.7111
L31: Jul | M31: 52.4089 | N31: 12.3003 | O31: 3405.1873 | P31: 10.262 | Q31: 27.3522
L32: Aug | M32: 49.3566 | N32: 12.0059 | O32: 1453.8196 | P32: 10.8491 | Q32: 25.5553
L33: Sep | M33: 60.3389 | N33: 11.9331 | O33: 1306.6372 | P33: 10.6308 | Q33: 18.6824
L34: Oct | M34: 35.8469 | N34: 7.2754 | O34: 1011.6361 | P34: 7.0354 | Q34: 16.7374
L35: Nov | M35: 20.8464 | N35: 5.7869 | O35: 1316.4747 | P35: 5.5305 | Q35: 16.4612
L36: Dec | M36: 13.146 | N36: 5.0234 | O36: 977.6266 | P36: 3.5664 | Q36: 12.7049
L37: Annual | M37: =AVERAGE(M25:M36) -> 27.57316667 | O37: =MAX(O25:O36) -> 3865.3022 | P37: =AVERAGE(P25:P36) -> 6.277216667 | Q37: =MAX(Q25:Q36) -> 64.6471
K39: =+A8 -> 2024 | L39: mg/Nm3 | M39: Highest daily 95%ile 10-min average | N39: Monthly mean of 10-min averages | O39: Highest 10-min average | P39: Monthly mean of daily averages | Q39: Highest daily average
K40: A3 | L40: Jan | M40: 6.9727 | N40: 2.3445 | O40: 1044.7112 | P40: 2.2992 | Q40: 20.2886
L41: Feb | M41: 5.7469 | N41: 2.2461 | O41: 793.8138 | P41: 1.9634 | Q41: 10.9606
L42: Mar | M42: 8.3916 | N42: 2.7625 | O42: 801.1355 | P42: 2.2982 | Q42: 9.1785
L43: Apr | M43: 11.9139 | N43: 3.5112 | O43: 483.6074 | P43: 3.2872 | Q43: 11.5523
L44: May | M44: 11.8766 | N44: 4.1197 | O44: 513.5349 | P44: 3.8152 | Q44: 20.2044
L45: Jun | M45: 34.9886 | N45: 7.2797 | O45: 818.6248 | P45: 7.1176 | Q45: 31.7124
L46: Jul | M46: 40.4976 | N46: 7.4226 | O46: 694.7825 | P46: 7.1767 | Q46: 16.2518
L47: Aug | M47: 57.7157 | N47: 10.3432 | O47: 741.8049 | P47: 9.5197 | Q47: 26.0154
L48: Sep | M48: 47.1516 | N48: 8.6434 | O48: 702.5587 | P48: 8.3357 | Q48: 19.8881
L49: Oct | M49: 36.3845 | N49: 7.132 | O49: 529.6155 | P49: 5.9258 | Q49: 14.1683
L50: Nov | M50: 42.4387 | N50: 7.9336 | O50: 642.1055 | P50: 4.5109 | Q50: 14.7881
A51: Comments : | L51: Dec | M51: 4.8789 | N51: 3.639 | O51: 1819.9883 | P51: 2.7253 | Q51: 23.7655
A52: Environment Agency explanatory note: The 10-minute average ELV is based on the “95th percentile”. In this case this means that 95% of the 10 minute averages in the relevant 24-hour period (i.e. 137) must be below 150 mg/Nm3, and 5% (i.e. 7) are allowed to be any value above 150 mg/Nm3. Whilst we expect operators to minimise CO emissions at all times, it is perfectly acceptable for the value of the maximum 10-minute average to be above 150 mg/Nm3, provided the 95th percentile ELV has been met for that period. A1 (line 1) had an outage for a complete month in October (hence no data available) | L52: Annual | M52: =AVERAGE(M40:M51) -> 25.74644167 | O52: =MAX(O40:O51) -> 1819.9883 | P52: =AVERAGE(P40:P51) -> 4.914575 | Q52: =MAX(Q40:Q51) -> 31.7124
K54: =+A8 -> 2024 | L54: mg/Nm3 | M54: Highest daily 95%ile 10-min average | N54: Monthly mean of 10-min averages | O54: Highest 10-min average | P54: Monthly mean of daily averages | Q54: Highest daily average
K55: A4 | L55: Jan
L56: Feb
L57: Mar
L58: Apr
L59: May
L60: Jun
L61: Jul
L62: Aug
L63: Sep
L64: Oct
L65: Nov
L66: Dec
L67: Annual | M67: =AVERAGE(M55:M66) ->  | O67: =MAX(O55:O66) -> 0 | P67: =AVERAGE(P55:P66) ->  | Q67: =MAX(Q55:Q66) -> 0
K69: =+A8 -> 2024 | L69: mg/Nm3 | M69: 95%ile 10-min avg maximum | N69: Monthly CO 10-min avg mean | O69: 10-min avg maximum | P69: Monthly daily mean | Q69: Monthly daily maximum
K70: A5 | L70: Jan
L71: Feb
L72: Mar
L73: Apr
L74: May
L75: Jun
L76: Jul
L77: Aug
L78: Sep
L79: Oct
L80: Nov
L81: Dec
L82: Annual | M82: =AVERAGE(M70:M81) ->  | O82: =MAX(O70:O81) -> 0 | P82: =AVERAGE(P70:P81) ->  | Q82: =MAX(Q70:Q81) -> 0

Sheet NH3
A1: =+'Cover Page'!$B$29 -> Annual Performance Report 2024 | E1: =+'Cover Page'!$B$33 -> Kent Enviropower Limited
A3: Monitoring of Ammnonia emissions | D3: Whole Installation | G3: See Notes in Cell Q3 | J3: =+A3 -> Monitoring of Ammnonia emissions | N3: Per Combustion Line | Q3: Notes:
Q4: User to add logic to complete Whole installation, Table A5:G18. From the data in Per Combustion Line, Table J6:O79, subject to No. of lines installed
A5: =+'Cover Page'!C39 -> 2024 | B5: 1/2 Hourly Reference Periods | E5: Daily Reference Periods
A6: mg/Nm3 | B6: 1/2 hourly NH3 ELV | C6: Monthly mean of half-hourly averages | D6: Highest half- hourly average | E6: Daily NH3 ELV | F6: Monthly mean of daily averages | G6: Highest daily average | J6: =+A5 -> 2024 | K6: mg/Nm3 | L6: Monthly mean of half-hourly averages | M6: Highest half- hourly average | N6: Monthly mean of daily averages | O6: Highest daily average
A7: Jan | B7: None | C7: =AVERAGE(L7,L22,L37) -> 0.091854 | D7: =AVERAGE(M7,M22,M37) -> 3.545792667 | E7: 10 | F7: =AVERAGE(N7,N22,N37) -> 0.091747 | G7: =AVERAGE(O7,O22,O37) -> 0.281073 | J7: A1 | K7: Jan | L7: 0.073713 | M7: 0.994086 | N7: 0.074615 | O7: 0.117479
A8: Feb | B8: =+B7 -> None | C8: =AVERAGE(L8,L23,L38) -> 0.1154223333 | D8: =AVERAGE(M8,M23,M38) -> 2.990161667 | E8: 10 | F8: =AVERAGE(N8,N23,N38) -> 0.1019483333 | G8: =AVERAGE(O8,O23,O38) -> 0.3134776667 | K8: Feb | L8: 0.059248 | M8: 0.78786 | N8: 0.059005 | O8: 0.139865
A9: Mar | B9: =+B8 -> None | C9: 0.1155176667 | D9: 9.047689 | E9: 10 | F9: 0.098481 | G9: 0.3013636667 | K9: Mar | L9: 0.133206 | M9: 19.302626 | N9: 0.124642 | O9: 0.578246 | Q9: Whole Installation table A5:G18:
A10: Apr | B10: None | C10: 0.1192466667 | D10: 10.947329 | E10: 10 | F10: 0.1154896667 | G10: 0.562991 | K10: Apr | L10: 0.042876 | M10: 0.566337 | N10: 0.04357 | O10: 0.078692 | Q10: Mean: for 1/2 hourly and daily periods calculate mean of values across all operational combustion lines for the month
A11: May | B11: None | C11: 0.238215 | D11: 20.37718467 | E11: 10 | F11: 0.2527006667 | G11: 1.757255 | K11: May | L11: 0.057231 | M11: 1.282271 | N11: 0.052519 | O11: 0.167778
A12: Jun | B12: None | C12: 0.2163106667 | D12: 8.009136 | E12: 10 | F12: 0.209087 | G12: 0.9386376667 | K12: Jun | L12: 0.081084 | M12: 3.256726 | N12: 0.075271 | O12: 0.149916
A13: Jul | B13: None | C13: 0.2741643333 | D13: 12.96015933 | E13: 10 | F13: 0.2577173333 | G13: 0.5660446667 | K13: Jul | L13: 0.12638 | M13: 2.411341 | N13: 0.127176 | O13: 0.324448 | Q13: Maximum: for 1/2 hourly and daily periods use the highest value across all operational combustion lines for the month
A14: Aug | B14: None | C14: 0.2470733333 | D14: 6.461793667 | E14: 10 | F14: 0.220606 | G14: 0.468748 | K14: Aug | L14: 0.124799 | M14: 9.758007 | N14: 0.092503 | O14: 0.323237
A15: Sep | B15: None | C15: 0.2332226667 | D15: 3.592730667 | E15: 10 | F15: 0.224871 | G15: 0.4992856667 | K15: Sep | L15: 0.065996 | M15: 1.900612 | N15: 0.069711 | O15: 0.1516
A16: Oct | B16: None | C16: 0.2973175 | D16: 4.6891775 | E16: 10 | F16: 0.2636045 | G16: 0.566003 | K16: Oct | L16: - | M16: - | N16: - | O16: -
A17: Nov | B17: None | C17: 0.170353 | D17: 3.240189333 | E17: 10 | F17: 0.1351606667 | G17: 0.3557723333 | K17: Nov | L17: 0.049739 | M17: 1.701501 | N17: 0.049733 | O17: 0.150617
A18: Dec | B18: None | C18: 0.09725766667 | D18: 4.065445333 | E18: 10 | F18: 0.08523933333 | G18: 0.4076443333 | K18: Dec | L18: 0.031438 | M18: 0.594135 | N18: 0.031339 | O18: 0.099847
K19: Annual | L19: =AVERAGE(L7:L18) -> 0.07688272727 | M19: =MAX(M7:M18) -> 19.302626 | N19: =AVERAGE(N7:N18) -> 0.07273490909 | O19: =MAX(O7:O18) -> 0.578246
J21: =+A5 -> 2024 | K21: mg/Nm3 | L21: Monthly mean of half-hourly averages | M21: Highest half- hourly average | N21: Monthly mean of daily averages | O21: Highest daily average
J22: A2 | K22: Jan | L22: 0.093406 | M22: 4.249988 | N22: 0.091228 | O22: 0.239719
K23: Feb | L23: 0.190398 | M23: 5.048636 | N23: 0.151066 | O23: 0.543864
K24: Mar | L24: 0.1032 | M24: 2.518521 | N24: 0.069513 | O24: 0.103336
K25: Apr | L25: 0.183009 | M25: 28.278997 | N25: 0.178162 | O25: 1.221186
K26: May | L26: 0.509342 | M26: 54.831505 | N26: 0.563875 | O26: 4.453254
K27: Jun | L27: 0.252567 | M27: 13.38201 | N27: 0.241932 | O27: 0.941821
K28: Jul | L28: 0.356508 | M28: 32.603413 | N28: 0.293011 | O28: 0.535035
K29: Aug | L29: 0.321694 | M29: 6.414078 | N29: 0.307397 | O29: 0.673657
K30: Sep | L30: 0.372304 | M30: 5.988379 | N30: 0.352735 | O30: 0.869426
K31: Oct | L31: 0.264688 | M31: 4.789115 | N31: 0.254511 | O31: 0.518022
K32: Nov | L32: 0.162985 | M32: 3.597767 | N32: 0.153554 | O32: 0.49863
K33: Dec | L33: 0.114257 | M33: 2.67838 | N33: 0.094051 | O33: 0.27557
K34: Annual | L34: =AVERAGE(L22:L33) -> 0.2436965 | M34: =MAX(M22:M33) -> 54.831505 | N34: =AVERAGE(N22:N33) -> 0.2292529167 | O34: =MAX(O22:O33) -> 4.453254
J36: =+A5 -> 2024 | K36: mg/Nm3 | L36: Monthly mean of half-hourly averages | M36: Highest half- hourly average | N36: Monthly mean of daily averages | O36: Highest daily average
J37: A3 | K37: Jan | L37: 0.108443 | M37: 5.393304 | N37: 0.109398 | O37: 0.486021
K38: Feb | L38: 0.096621 | M38: 3.133989 | N38: 0.095774 | O38: 0.256704
K39: Mar | L39: 0.110147 | M39: 5.32192 | N39: 0.101288 | O39: 0.222509
K40: Apr | L40: 0.131855 | M40: 3.996653 | N40: 0.124737 | O40: 0.389095
K41: May | L41: 0.148072 | M41: 5.017778 | N41: 0.141708 | O41: 0.650733
K42: Jun | L42: 0.315281 | M42: 7.388672 | N42: 0.310058 | O42: 1.724176
K43: Jul | L43: 0.339605 | M43: 3.865724 | N43: 0.352965 | O43: 0.838651
K44: Aug | L44: 0.294727 | M44: 3.213296 | N44: 0.261918 | O44: 0.40935
K45: Sep | L45: 0.261368 | M45: 2.889201 | N45: 0.252167 | O45: 0.476831
K46: Oct | L46: 0.329947 | M46: 4.58924 | N46: 0.272698 | O46: 0.613984
K47: Nov | L47: 0.298335 | M47: 4.4213 | N47: 0.202195 | O47: 0.41807
A48: Comments : | K48: Dec | L48: 0.146078 | M48: 8.923821 | N48: 0.130328 | O48: 0.847516
A49: An indicated ELV value of zero in the table above means that no ammonia limit is/was set in the permit. A1 (line 1) had an outage for a complete month in October (hence no data available) | K49: Annual | L49: =AVERAGE(L37:L48) -> 0.2150399167 | M49: =MAX(M37:M48) -> 8.923821 | N49: =AVERAGE(N37:N48) -> 0.1962695 | O49: =MAX(O37:O48) -> 1.724176
J51: =+A5 -> 2024 | K51: mg/Nm3 | L51: Monthly mean of half-hourly averages | M51: Highest half- hourly average | N51: Monthly mean of daily averages | O51: Highest daily average
J52: A4 | K52: Jan
K53: Feb
K54: Mar
K55: Apr
K56: May
K57: Jun
K58: Jul
K59: Aug
K60: Sep
K61: Oct
K62: Nov
K63: Dec
K64: Annual | L64: =AVERAGE(L52:L63) ->  | M64: =MAX(M52:M63) -> 0 | N64: =AVERAGE(N52:N63) ->  | O64: =MAX(O52:O63) -> 0
J66: =+A5 -> 2024 | K66: mg/Nm3 | L66: Monthly mean of half-hourly averages | M66: Highest half- hourly average | N66: Monthly mean of daily averages | O66: Highest daily average
J67: A5 | K67: Jan
K68: Feb
K69: Mar
K70: Apr
K71: May
K72: Jun
K73: Jul
K74: Aug
K75: Sep
K76: Oct
K77: Nov
K78: Dec
K79: Annual | L79: =AVERAGE(L67:L78) ->  | M79: =MAX(M67:M78) -> 0 | N79: =AVERAGE(N67:N78) ->  | O79: =MAX(O67:O78) -> 0

Sheet Template changes log
A1: Log of changes to template (Environment Agency use only)
A3: Date | B3: Description of change | C3: New version number and date
A4: 2024-01-16 | B4: Air (periodic) tab: corrected default O2 reference from 6 to 11% | C4: Version 23.5a (for incinerators) - 16/01/2024
A5: 2024-09-23 | B5: Air (periodic) tab: corrected symbol for Thallium to Tl
A6: 2024-09-23 | B6: Air (periodic) tab: removed last year's references to different emission limit values applying from 03/12/23 and updated all relevant ELVs
A7: 2024-09-23 | B7: Tabs for continuously monitored pollutants (HCl, SO2 etc.): changed terminology in table headings to improve clarity
A8: 2024-09-23 | B8: Tabs for continuously monitored pollutants (HCl, SO2 etc.): removed last year's references to different emission limit values applying from 03/12/23 and updated all relevant ELVs
A9: 2024-09-23 | B9: Perf 1 tab: updated formula for water usage to report m3 rather than litres and corrected error with formula copying operator name
A10: 2024-09-23 | B10: Operational Summary tab: table added on start-ups and shut-downs
A11: 2024-09-23 | B11: Operational Summary tab: table added on dioxins and mercury protocols
A12: 2024-09-23 | B12: Operational Summary tab: table added on AST, QAL 2 and calibration functions
A13: 2024-09-23 | B13: CO2 N2O tab: various changes made to notes to reflect the fact that most plants should now have calibrated CEMS and flow meters + some have C14 samplers and more up to date industry data | C13: Version 24a (for incinerators) - 23/09/24
A14: 2024-11-08 | B14: CO2 N2O tab: Changed the N2O CO2 equivalence factor from 298 to 265 in line with recently updated government greenhouse gas figures: https://www.gov.uk/government/publications/greenhouse-gas-reporting-conversion-factors-2024
A15: 2024-11-08 | B15: CO2 N2O tab: Added an additional requirement for municipal EfW plants to state the yearly average biogenic percentage of the waste by mass, and reference to a document which sets out a methodology for calculating NCV of waste from the results of C14 sampling.
A16: 2024-11-08 | B16: Permit Compliance tab: Two additional columns added + explanatory notes to the table entitled "Summary of non-compliances under the permit" to allow CCS scores to be stated where relevant.
A17: 2024-11-08 | B17: Residue Quality tab: Note added explaining application of TOC and LOI limits and asking operators to report both metrics where measured. | C17: Version 24.1a (for incinerators) - 08/11/24
A18: 2024-11-27 | B18: Operational Summary tab: Tables on mercury & dioxins protocols and ASTs removed (covered instead by new tables added to updated Air 9 periodic monitoring form) | C18: Version 24.2a (for incinerators) - 27/11/24
